Service area,Service sub division,TVBC Service,Expense type,Detailed expense type,TVBC account code,Date Paid,Transaction Reference, Nett Value ,Supplier Name
Central Services to the Public,Central Services to the Public,Finance,Supplies & Services,Services,Insurance ,09/02/2023,475273,-45799.14,Gallagher
Central Services,Central Services,Corporate & Democratic,Supplies & Services,Communications & Computing,Software Maintenance,23/02/2023,473205,-9023.18,Civica Uk Ltd
Environmental & Regulatory,Environmental & Regulatory,Environmental,Transport Related Expenditure,Direct Transport Costs,Repair Materials,23/02/2023,475891,-2583.45,South East Cranes Ltd
External Trading Accounts,External Trading Accounts,Premises & Asset Management,Premises related Expenditure,Water Services,Water And Sewerage Charges,02/02/2023,473754,-2643.11,Castle Water Limited
Environmental & Regulatory,Environmental & Regulatory,Environmental,Employees,Indirect Employee Expenses,Agency Staff - Waged Posts,23/02/2023,475603,-983.71,Simple Recruitment Services Ltd
Environmental & Regulatory,Environmental & Regulatory,Environmental,Employees,Indirect Employee Expenses,Agency Staff - Waged Posts,23/02/2023,475603,-266.03,Simple Recruitment Services Ltd
Cultural & Related,Cultural & Related,Premises & Asset Management,Premises related Expenditure,Water Services,Water And Sewerage Charges,23/02/2023,473500,-905.71,Castle Water Limited
Cultural & Related,Cultural & Related,Premises & Asset Management,Premises related Expenditure,Energy Costs,Gas,16/02/2023,475624,-720.75,Totalenergies Gas & Power Ltd
Planning & Development,Planning & Development,Planning Policy & Economic Development ,Supplies & Services,Services,Training Courses,09/02/2023,473904,500,Saxon Safety Ltd
Planning & Development,Planning & Development,Community and Leisure ,Supplies & Services,Grants & Subscriptions,Grants,02/02/2023,474534,500,Sherfield English Parish Council
Central Services to the Public,Central Services to the Public,IT,Supplies & Services,Communications & Computing,Communication Links,16/02/2023,474775,420,Cloud Gateway Limited
Cultural & Related,Cultural & Related,Community and Leisure ,Premises related Expenditure,Repairs Alterations & Maintenance of Buildings,Estates premises costs - AMP,09/02/2023,474739,420,Hoare Tree Services Ltd
Cultural & Related,Cultural & Related,Community and Leisure ,Premises related Expenditure,Repairs Alterations & Maintenance of Buildings,Estates premises costs - AMP,09/02/2023,474765,420,Hoare Tree Services Ltd
Central Services to the Public,Central Services to the Public,Premises & Asset Management,Premises related Expenditure,Energy Costs,Gas,16/02/2023,475636,420.74,Totalenergies Gas & Power Ltd
Cultural & Related,Cultural & Related,Premises & Asset Management,Premises related Expenditure,Energy Costs,Gas,16/02/2023,475643,422.86,Totalenergies Gas & Power Ltd
"Highways, Roads & Transport","Highways, Roads & Transport",Plan Pol & Transport,Supplies & Services,Communications & Computing,Computer Hardware,09/02/2023,474420,423.72,Exampleit Ltd
Cultural & Related,Cultural & Related,Environmental,Supplies & Services,"Equipment, Furniture & Materials",Purchases for playgrounds,23/02/2023,472811,395.9,Atf Supplies Nationwide Ltd
Cultural & Related,Cultural & Related,Environmental,Supplies & Services,"Equipment, Furniture & Materials",Purchase Equip + Materials,23/02/2023,472811,28.5,Atf Supplies Nationwide Ltd
Cultural & Related,Cultural & Related,Community and Leisure ,Supplies & Services,"Printing, Stationery & General Office Expenses",Licences / Affiliation Fees,16/02/2023,475747,425.38,Ppl Prs Ltd
Environmental & Regulatory,Environmental & Regulatory,Environmental,Transport Related Expenditure,Direct Transport Costs,Repair Materials,23/02/2023,475836,444.69,Dennis Eagle Ltd
Central Services to the Public,Central Services to the Public,Environmental,Supplies & Services,"Equipment, Furniture & Materials",Maintenance Equip + Materials,23/02/2023,475882,446.91,Hyphose Ltd
Central Services to the Public,Central Services to the Public,Premises & Asset Management,Employees,Indirect Employee Expenses,Staff Professional Fees,02/02/2023,474537,539,Personal Data - Data Protection Act 1998
Central Services to the Public,Central Services to the Public,Legal & Democratic,Supplies & Services,Services,Legal Fees,09/02/2023,475099,450,Cornerstone Barristers
Environmental & Regulatory,Environmental & Regulatory,Environmental,Transport Related Expenditure,Direct Transport Costs,External Garages,23/02/2023,475794,452.39,R D Avery
External Trading Accounts,External Trading Accounts,Premises & Asset Management,Premises related Expenditure,Energy Costs,Electricity,16/02/2023,475575,522.2,Smartestenergy Business Limited
Environmental & Regulatory,Environmental & Regulatory,Environmental,Employees,Indirect Employee Expenses,Agency Staff - Waged Posts,23/02/2023,476094,457.68,24-7 Staffing
Environmental & Regulatory,Environmental & Regulatory,Community and Leisure ,Supplies & Services,Grants & Subscriptions,Grants,16/02/2023,475878,550,Wellow Parish Council
External Trading Accounts,External Trading Accounts,Premises & Asset Management,Premises related Expenditure,Energy Costs,Electricity,23/02/2023,475781,533.25,Smartestenergy Business Limited
Central Services to the Public,Central Services to the Public,HR Services,Supplies & Services,Services,Medical Fees,02/02/2023,473222,560,Personal Data - Data Protection Act 1998
Cultural & Related,Cultural & Related,Community and Leisure ,Premises related Expenditure,Repairs Alterations & Maintenance of Buildings,Estates premises costs - AMP,09/02/2023,474742,480,Groundlord Ltd
External Trading Accounts,External Trading Accounts,Premises & Asset Management,Premises related Expenditure,Repairs Alterations & Maintenance of Buildings,Salt & Gritting,16/02/2023,475759,488.46,Nurture Landscapes Ltd
Housing Services,Housing Services,Revenues,Supplies & Services,Services,Training Courses,23/02/2023,475588,247.5,Hbinfo Ltd
Central Services to the Public,Central Services to the Public,Revenues,Supplies & Services,Services,Training Courses,23/02/2023,475588,247.5,Hbinfo Ltd
External Trading Accounts,External Trading Accounts,Premises & Asset Management,Premises related Expenditure,Grounds Maintenance Costs,Grounds Maintenance Contracts,09/02/2023,475057,496.84,Landmarks Sustainability Ltd
Central Services to the Public,Central Services to the Public,Environmental,Transport Related Expenditure,Direct Transport Costs,Repair Materials,09/02/2023,474416,505.3,Ppk Services Ltd
Cultural & Related,Cultural & Related,Environmental,Transport Related Expenditure,Direct Transport Costs,Repair Materials,09/02/2023,474240,506.95,Lister Wilder
Environmental & Regulatory,Environmental & Regulatory,Environmental,Supplies & Services,Services,Training Courses,16/02/2023,475746,616,Sparsholt College Hampshire
Planning & Development,Planning & Development,Planning & Building,Supplies & Services,Services,Project Consultancy - Policy,09/02/2023,474210,521,Hampshire County Council
"Highways, Roads & Transport","Highways, Roads & Transport",Plan Pol & Transport,Third Party Payments,Transport Operators in Respect of Concessionary Fares,Voluntary Orgs Reimbursement,23/02/2023,476371,628.5,Romsey Good Neighbours
Cultural & Related,Cultural & Related,Community and Leisure ,Premises related Expenditure,Grounds Maintenance Costs,Non Contract Tree Works,23/02/2023,475048,524.88,Vesper Conservation & Ecology Ltd
Cultural & Related,Cultural & Related,Community and Leisure ,Supplies & Services,"Equipment, Furniture & Materials",Equipment Hire,09/02/2023,474243,630,Wessex Event Solutions
Cultural & Related,Cultural & Related,Community and Leisure ,Premises related Expenditure,Repairs Alterations & Maintenance of Buildings,Planned Maintenance - Non Est,23/02/2023,476266,537,Flow Mech Products Ltd
External Trading Accounts,External Trading Accounts,Premises & Asset Management,Premises related Expenditure,Energy Costs,Gas,16/02/2023,475628,539.92,Totalenergies Gas & Power Ltd
Planning & Development,Planning & Development,Community and Leisure ,Supplies & Services,Grants & Subscriptions,Grants,23/02/2023,476369,650,Unity
Environmental & Regulatory,Environmental & Regulatory,Community and Leisure ,Supplies & Services,Miscellaneous Expenses,Promotions / Special Events,02/02/2023,473114,650.02,The Studio
Central Services to the Public,Central Services to the Public,IT,Supplies & Services,"Equipment, Furniture & Materials",IT Supp and Serv AMP,09/02/2023,474362,550,Nuvola Distribution Ltd
External Trading Accounts,External Trading Accounts,Premises & Asset Management,Premises related Expenditure,Repairs Alterations & Maintenance of Buildings,Estates premises costs - AMP,16/02/2023,475778,15,Personal Data - Data Protection Act 1998
Central Services to the Public,Central Services to the Public,Premises & Asset Management,Third Party Payments,Other Establishments,Private Contractors,16/02/2023,475778,645,Personal Data - Data Protection Act 1998
Environmental & Regulatory,Environmental & Regulatory,Environmental,Transport Related Expenditure,Direct Transport Costs,External Garages,09/02/2023,474415,552.3,R D Avery
Central Services to the Public,Central Services to the Public,Premises & Asset Management,Premises related Expenditure,Repairs Alterations & Maintenance of Buildings,Planned Maintenance - Non Est,23/02/2023,475798,554.15,Shield Environmenental Services Limited
Central Services to the Public,Central Services to the Public,Revenues,Supplies & Services,"Printing, Stationery & General Office Expenses",Postage Costs,09/02/2023,474732,25.23,Royal Mail Group Ltd
Central Services to the Public,Central Services to the Public,Revenues,Supplies & Services,"Printing, Stationery & General Office Expenses",Postage Costs,09/02/2023,474732,536.16,Royal Mail Group Ltd
Housing Services,Housing Services,Revenues,Supplies & Services,"Printing, Stationery & General Office Expenses",Postage Costs,09/02/2023,474732,2.61,Royal Mail Group Ltd
Central Services to the Public,Central Services to the Public,Revenues,Supplies & Services,"Printing, Stationery & General Office Expenses",Postage Costs,09/02/2023,474732,2.61,Royal Mail Group Ltd
Central Services to the Public,Central Services to the Public,Premises & Asset Management,Third Party Payments,Other Establishments,Contract Catering,16/02/2023,475540,569.55,Edwards And Ward Ltd
Environmental & Regulatory,Environmental & Regulatory,Housing and Environmental Health ,Supplies & Services,"Equipment, Furniture & Materials",Purchase Equip + Materials,16/02/2023,475052,573,Campbell Associates Ltd
Environmental & Regulatory,Environmental & Regulatory,Environmental,Transport Related Expenditure,Direct Transport Costs,Repair Materials,02/02/2023,473570,574.84,Gm Sweepers Uk Ltd
Central Services to the Public,Central Services to the Public,Premises & Asset Management,Third Party Payments,Other Establishments,Private Contractors,16/02/2023,475568,575,Doorgear Limited
Cultural & Related,Cultural & Related,Premises & Asset Management,Premises related Expenditure,Water Services,Water And Sewerage Charges,02/02/2023,471829,694.7,Castle Water Limited
Environmental & Regulatory,Environmental & Regulatory,Environmental,Employees,Indirect Employee Expenses,Agency Staff - Waged Posts,09/02/2023,475053,589.71,Simple Recruitment Services Ltd
Cultural & Related,Cultural & Related,Premises & Asset Management,Premises related Expenditure,Energy Costs,Gas,16/02/2023,475629,597.8,Totalenergies Gas & Power Ltd
Environmental & Regulatory,Environmental & Regulatory,Environmental,Employees,Indirect Employee Expenses,Agency Staff - Waged Posts,02/02/2023,473759,598.8,Aligra
Planning & Development,Planning & Development,Planning & Building,Supplies & Services,Services,Project Consultancy - Policy,23/02/2023,476288,600,Groundlord Ltd
Cultural & Related,Cultural & Related,Premises & Asset Management,Premises related Expenditure,Energy Costs,Gas,16/02/2023,475728,601.13,Totalenergies Gas & Power Ltd
Environmental & Regulatory,Environmental & Regulatory,Environmental,Transport Related Expenditure,Direct Transport Costs,Repair Materials,23/02/2023,475787,607.04,Hiab Limited (Del Uk)
Environmental & Regulatory,Environmental & Regulatory,Housing and Environmental Health ,Supplies & Services,Grants and subscriptions,Capital Grants,09/02/2023,475281,731.24,Bjc Design (Southeast) Ltd
Environmental & Regulatory,Environmental & Regulatory,Environmental,Supplies & Services,"Equipment, Furniture & Materials",Purchase Equip + Materials,16/02/2023,474779,610.5,Spaldings (Uk) Limited
Cultural & Related,Cultural & Related,Premises & Asset Management,Premises related Expenditure,Repairs Alterations & Maintenance of Buildings,Building Maint - Non Estates,23/02/2023,475871,1.22,Corrigenda Ltd
Cultural & Related,Cultural & Related,Premises & Asset Management,Premises related Expenditure,Repairs Alterations & Maintenance of Buildings,Building Maint - Non Estates,23/02/2023,475872,1.22,Corrigenda Ltd
Cultural & Related,Cultural & Related,Premises & Asset Management,Premises related Expenditure,Repairs Alterations & Maintenance of Buildings,Building Maint - Non Estates,23/02/2023,475873,1.22,Corrigenda Ltd
Cultural & Related,Cultural & Related,Premises & Asset Management,Premises related Expenditure,Repairs Alterations & Maintenance of Buildings,Building Maint - Non Estates,23/02/2023,475874,1.22,Corrigenda Ltd
Cultural & Related,Cultural & Related,Premises & Asset Management,Premises related Expenditure,Repairs Alterations & Maintenance of Buildings,Building Maint - Non Estates,23/02/2023,475875,1.22,Corrigenda Ltd
Cultural & Related,Cultural & Related,Premises & Asset Management,Premises related Expenditure,Repairs Alterations & Maintenance of Buildings,Planned Maintenance - Non Est,02/02/2023,473911,1.22,Corrigenda Ltd
Central Services to the Public,Central Services to the Public,Premises & Asset Management,Premises related Expenditure,Repairs Alterations & Maintenance of Buildings,Building Maint - Non Estates,23/02/2023,475871,20.4,Corrigenda Ltd
Central Services to the Public,Central Services to the Public,Premises & Asset Management,Premises related Expenditure,Repairs Alterations & Maintenance of Buildings,Building Maint - Non Estates,23/02/2023,475872,20.4,Corrigenda Ltd
Central Services to the Public,Central Services to the Public,Premises & Asset Management,Premises related Expenditure,Repairs Alterations & Maintenance of Buildings,Building Maint - Non Estates,23/02/2023,475873,20.4,Corrigenda Ltd
Central Services to the Public,Central Services to the Public,Premises & Asset Management,Premises related Expenditure,Repairs Alterations & Maintenance of Buildings,Building Maint - Non Estates,23/02/2023,475874,20.4,Corrigenda Ltd
Central Services to the Public,Central Services to the Public,Premises & Asset Management,Premises related Expenditure,Repairs Alterations & Maintenance of Buildings,Building Maint - Non Estates,23/02/2023,475875,20.4,Corrigenda Ltd
Central Services to the Public,Central Services to the Public,Premises & Asset Management,Premises related Expenditure,Repairs Alterations & Maintenance of Buildings,Planned Maintenance - Non Est,02/02/2023,473911,20.4,Corrigenda Ltd
Central Services to the Public,Central Services to the Public,Premises & Asset Management,Premises related Expenditure,Repairs Alterations & Maintenance of Buildings,Planned Maintenance - Non Est,02/02/2023,473912,20.4,Corrigenda Ltd
Central Services to the Public,Central Services to the Public,Premises & Asset Management,Premises related Expenditure,Repairs Alterations & Maintenance of Buildings,Planned Maintenance - Non Est,02/02/2023,473913,20.4,Corrigenda Ltd
Central Services to the Public,Central Services to the Public,Premises & Asset Management,Premises related Expenditure,Repairs Alterations & Maintenance of Buildings,Planned Maintenance - Non Est,02/02/2023,473914,20.4,Corrigenda Ltd
Central Services to the Public,Central Services to the Public,Premises & Asset Management,Premises related Expenditure,Repairs Alterations & Maintenance of Buildings,Planned Maintenance - Non Est,02/02/2023,473915,20.4,Corrigenda Ltd
Central Services to the Public,Central Services to the Public,Premises & Asset Management,Premises related Expenditure,Repairs Alterations & Maintenance of Buildings,Planned Maintenance - Non Est,16/02/2023,472836,612.48,Corrigenda Ltd
Central Services to the Public,Central Services to the Public,Premises & Asset Management,Premises related Expenditure,Repairs Alterations & Maintenance of Buildings,Building Maint - Non Estates,23/02/2023,475871,2.39,Corrigenda Ltd
Central Services to the Public,Central Services to the Public,Premises & Asset Management,Premises related Expenditure,Repairs Alterations & Maintenance of Buildings,Building Maint - Non Estates,23/02/2023,475872,2.39,Corrigenda Ltd
Central Services to the Public,Central Services to the Public,Premises & Asset Management,Premises related Expenditure,Repairs Alterations & Maintenance of Buildings,Building Maint - Non Estates,23/02/2023,475873,2.39,Corrigenda Ltd
Central Services to the Public,Central Services to the Public,Premises & Asset Management,Premises related Expenditure,Repairs Alterations & Maintenance of Buildings,Building Maint - Non Estates,23/02/2023,475874,2.39,Corrigenda Ltd
Central Services to the Public,Central Services to the Public,Premises & Asset Management,Premises related Expenditure,Repairs Alterations & Maintenance of Buildings,Building Maint - Non Estates,23/02/2023,475875,2.39,Corrigenda Ltd
Central Services to the Public,Central Services to the Public,Premises & Asset Management,Premises related Expenditure,Repairs Alterations & Maintenance of Buildings,Planned Maintenance - Non Est,02/02/2023,473911,2.39,Corrigenda Ltd
Central Services to the Public,Central Services to the Public,Premises & Asset Management,Premises related Expenditure,Repairs Alterations & Maintenance of Buildings,Planned Maintenance - Non Est,02/02/2023,473912,2.39,Corrigenda Ltd
Central Services to the Public,Central Services to the Public,Premises & Asset Management,Premises related Expenditure,Repairs Alterations & Maintenance of Buildings,Planned Maintenance - Non Est,02/02/2023,473913,2.39,Corrigenda Ltd
Central Services to the Public,Central Services to the Public,Premises & Asset Management,Premises related Expenditure,Repairs Alterations & Maintenance of Buildings,Planned Maintenance - Non Est,02/02/2023,473914,2.39,Corrigenda Ltd
Central Services to the Public,Central Services to the Public,Premises & Asset Management,Premises related Expenditure,Repairs Alterations & Maintenance of Buildings,Planned Maintenance - Non Est,02/02/2023,473915,2.39,Corrigenda Ltd
Central Services to the Public,Central Services to the Public,Premises & Asset Management,Premises related Expenditure,Repairs Alterations & Maintenance of Buildings,Building Maint - Non Estates,23/02/2023,475871,4.78,Corrigenda Ltd
Central Services to the Public,Central Services to the Public,Premises & Asset Management,Premises related Expenditure,Repairs Alterations & Maintenance of Buildings,Building Maint - Non Estates,23/02/2023,475872,4.78,Corrigenda Ltd
Central Services to the Public,Central Services to the Public,Premises & Asset Management,Premises related Expenditure,Repairs Alterations & Maintenance of Buildings,Building Maint - Non Estates,23/02/2023,475873,4.78,Corrigenda Ltd
Central Services to the Public,Central Services to the Public,Premises & Asset Management,Premises related Expenditure,Repairs Alterations & Maintenance of Buildings,Building Maint - Non Estates,23/02/2023,475874,4.78,Corrigenda Ltd
Central Services to the Public,Central Services to the Public,Premises & Asset Management,Premises related Expenditure,Repairs Alterations & Maintenance of Buildings,Building Maint - Non Estates,23/02/2023,475875,4.78,Corrigenda Ltd
Central Services to the Public,Central Services to the Public,Premises & Asset Management,Premises related Expenditure,Repairs Alterations & Maintenance of Buildings,Planned Maintenance - Non Est,02/02/2023,473911,4.78,Corrigenda Ltd
Central Services to the Public,Central Services to the Public,Premises & Asset Management,Premises related Expenditure,Repairs Alterations & Maintenance of Buildings,Planned Maintenance - Non Est,02/02/2023,473912,4.78,Corrigenda Ltd
Central Services to the Public,Central Services to the Public,Premises & Asset Management,Premises related Expenditure,Repairs Alterations & Maintenance of Buildings,Planned Maintenance - Non Est,02/02/2023,473913,4.78,Corrigenda Ltd
Central Services to the Public,Central Services to the Public,Premises & Asset Management,Premises related Expenditure,Repairs Alterations & Maintenance of Buildings,Planned Maintenance - Non Est,02/02/2023,473914,4.78,Corrigenda Ltd
Central Services to the Public,Central Services to the Public,Premises & Asset Management,Premises related Expenditure,Repairs Alterations & Maintenance of Buildings,Planned Maintenance - Non Est,02/02/2023,473915,4.78,Corrigenda Ltd
Cultural & Related,Cultural & Related,Community and Leisure ,Premises related Expenditure,Repairs Alterations & Maintenance of Buildings,Building Maint - Non Estates,23/02/2023,475871,42.02,Corrigenda Ltd
Cultural & Related,Cultural & Related,Community and Leisure ,Premises related Expenditure,Repairs Alterations & Maintenance of Buildings,Building Maint - Non Estates,23/02/2023,475872,42.02,Corrigenda Ltd
Cultural & Related,Cultural & Related,Community and Leisure ,Premises related Expenditure,Repairs Alterations & Maintenance of Buildings,Building Maint - Non Estates,23/02/2023,475873,42.02,Corrigenda Ltd
Cultural & Related,Cultural & Related,Community and Leisure ,Premises related Expenditure,Repairs Alterations & Maintenance of Buildings,Building Maint - Non Estates,23/02/2023,475874,42.02,Corrigenda Ltd
Cultural & Related,Cultural & Related,Community and Leisure ,Premises related Expenditure,Repairs Alterations & Maintenance of Buildings,Building Maint - Non Estates,23/02/2023,475875,42.02,Corrigenda Ltd
Cultural & Related,Cultural & Related,Community and Leisure ,Premises related Expenditure,Repairs Alterations & Maintenance of Buildings,Planned Maintenance - Non Est,02/02/2023,473911,43.24,Corrigenda Ltd
Cultural & Related,Cultural & Related,Community and Leisure ,Premises related Expenditure,Repairs Alterations & Maintenance of Buildings,Planned Maintenance - Non Est,02/02/2023,473912,42.02,Corrigenda Ltd
Cultural & Related,Cultural & Related,Community and Leisure ,Premises related Expenditure,Repairs Alterations & Maintenance of Buildings,Planned Maintenance - Non Est,02/02/2023,473913,42.02,Corrigenda Ltd
Cultural & Related,Cultural & Related,Community and Leisure ,Premises related Expenditure,Repairs Alterations & Maintenance of Buildings,Planned Maintenance - Non Est,02/02/2023,473914,42.02,Corrigenda Ltd
Cultural & Related,Cultural & Related,Community and Leisure ,Premises related Expenditure,Repairs Alterations & Maintenance of Buildings,Planned Maintenance - Non Est,02/02/2023,473915,42.02,Corrigenda Ltd
Cultural & Related,Cultural & Related,Community and Leisure ,Premises related Expenditure,Repairs Alterations & Maintenance of Buildings,Building Maint - Non Estates,23/02/2023,475871,104.49,Corrigenda Ltd
Cultural & Related,Cultural & Related,Community and Leisure ,Premises related Expenditure,Repairs Alterations & Maintenance of Buildings,Building Maint - Non Estates,23/02/2023,475872,104.49,Corrigenda Ltd
Cultural & Related,Cultural & Related,Community and Leisure ,Premises related Expenditure,Repairs Alterations & Maintenance of Buildings,Building Maint - Non Estates,23/02/2023,475873,104.49,Corrigenda Ltd
Cultural & Related,Cultural & Related,Community and Leisure ,Premises related Expenditure,Repairs Alterations & Maintenance of Buildings,Building Maint - Non Estates,23/02/2023,475874,104.49,Corrigenda Ltd
Cultural & Related,Cultural & Related,Community and Leisure ,Premises related Expenditure,Repairs Alterations & Maintenance of Buildings,Building Maint - Non Estates,23/02/2023,475875,104.49,Corrigenda Ltd
Cultural & Related,Cultural & Related,Community and Leisure ,Premises related Expenditure,Repairs Alterations & Maintenance of Buildings,Planned Maintenance - Non Est,02/02/2023,473911,104.49,Corrigenda Ltd
Cultural & Related,Cultural & Related,Community and Leisure ,Premises related Expenditure,Repairs Alterations & Maintenance of Buildings,Planned Maintenance - Non Est,02/02/2023,473912,104.49,Corrigenda Ltd
Cultural & Related,Cultural & Related,Community and Leisure ,Premises related Expenditure,Repairs Alterations & Maintenance of Buildings,Planned Maintenance - Non Est,02/02/2023,473913,104.49,Corrigenda Ltd
Cultural & Related,Cultural & Related,Community and Leisure ,Premises related Expenditure,Repairs Alterations & Maintenance of Buildings,Planned Maintenance - Non Est,02/02/2023,473914,104.49,Corrigenda Ltd
Cultural & Related,Cultural & Related,Community and Leisure ,Premises related Expenditure,Repairs Alterations & Maintenance of Buildings,Planned Maintenance - Non Est,02/02/2023,473915,104.49,Corrigenda Ltd
Cultural & Related,Cultural & Related,Community and Leisure ,Premises related Expenditure,Repairs Alterations & Maintenance of Buildings,Building Maint - Non Estates,23/02/2023,475871,42.02,Corrigenda Ltd
Cultural & Related,Cultural & Related,Community and Leisure ,Premises related Expenditure,Repairs Alterations & Maintenance of Buildings,Building Maint - Non Estates,23/02/2023,475872,42.02,Corrigenda Ltd
Cultural & Related,Cultural & Related,Community and Leisure ,Premises related Expenditure,Repairs Alterations & Maintenance of Buildings,Building Maint - Non Estates,23/02/2023,475873,42.02,Corrigenda Ltd
Cultural & Related,Cultural & Related,Community and Leisure ,Premises related Expenditure,Repairs Alterations & Maintenance of Buildings,Building Maint - Non Estates,23/02/2023,475874,42.02,Corrigenda Ltd
Cultural & Related,Cultural & Related,Community and Leisure ,Premises related Expenditure,Repairs Alterations & Maintenance of Buildings,Building Maint - Non Estates,23/02/2023,475875,42.02,Corrigenda Ltd
Cultural & Related,Cultural & Related,Community and Leisure ,Premises related Expenditure,Repairs Alterations & Maintenance of Buildings,Planned Maintenance - Non Est,02/02/2023,473911,42.02,Corrigenda Ltd
Cultural & Related,Cultural & Related,Community and Leisure ,Premises related Expenditure,Repairs Alterations & Maintenance of Buildings,Planned Maintenance - Non Est,02/02/2023,473912,42.02,Corrigenda Ltd
Cultural & Related,Cultural & Related,Community and Leisure ,Premises related Expenditure,Repairs Alterations & Maintenance of Buildings,Planned Maintenance - Non Est,02/02/2023,473913,42.02,Corrigenda Ltd
Cultural & Related,Cultural & Related,Community and Leisure ,Premises related Expenditure,Repairs Alterations & Maintenance of Buildings,Planned Maintenance - Non Est,02/02/2023,473914,42.02,Corrigenda Ltd
Cultural & Related,Cultural & Related,Community and Leisure ,Premises related Expenditure,Repairs Alterations & Maintenance of Buildings,Planned Maintenance - Non Est,02/02/2023,473915,42.02,Corrigenda Ltd
Cultural & Related,Cultural & Related,Community and Leisure ,Premises related Expenditure,Repairs Alterations & Maintenance of Buildings,Building Maint - Non Estates,23/02/2023,475871,67.25,Corrigenda Ltd
Cultural & Related,Cultural & Related,Community and Leisure ,Premises related Expenditure,Repairs Alterations & Maintenance of Buildings,Building Maint - Non Estates,23/02/2023,475872,67.25,Corrigenda Ltd
Cultural & Related,Cultural & Related,Community and Leisure ,Premises related Expenditure,Repairs Alterations & Maintenance of Buildings,Building Maint - Non Estates,23/02/2023,475873,67.25,Corrigenda Ltd
Cultural & Related,Cultural & Related,Community and Leisure ,Premises related Expenditure,Repairs Alterations & Maintenance of Buildings,Building Maint - Non Estates,23/02/2023,475874,67.25,Corrigenda Ltd
Cultural & Related,Cultural & Related,Community and Leisure ,Premises related Expenditure,Repairs Alterations & Maintenance of Buildings,Building Maint - Non Estates,23/02/2023,475875,67.25,Corrigenda Ltd
Cultural & Related,Cultural & Related,Community and Leisure ,Premises related Expenditure,Repairs Alterations & Maintenance of Buildings,Planned Maintenance - Non Est,02/02/2023,473911,67.25,Corrigenda Ltd
Cultural & Related,Cultural & Related,Community and Leisure ,Premises related Expenditure,Repairs Alterations & Maintenance of Buildings,Planned Maintenance - Non Est,02/02/2023,473912,67.25,Corrigenda Ltd
Cultural & Related,Cultural & Related,Community and Leisure ,Premises related Expenditure,Repairs Alterations & Maintenance of Buildings,Planned Maintenance - Non Est,02/02/2023,473913,67.25,Corrigenda Ltd
Cultural & Related,Cultural & Related,Community and Leisure ,Premises related Expenditure,Repairs Alterations & Maintenance of Buildings,Planned Maintenance - Non Est,02/02/2023,473914,67.25,Corrigenda Ltd
Cultural & Related,Cultural & Related,Community and Leisure ,Premises related Expenditure,Repairs Alterations & Maintenance of Buildings,Planned Maintenance - Non Est,02/02/2023,473915,67.25,Corrigenda Ltd
Cultural & Related,Cultural & Related,Community and Leisure ,Premises related Expenditure,Repairs Alterations & Maintenance of Buildings,Building Maint - Non Estates,23/02/2023,475871,27.62,Corrigenda Ltd
Cultural & Related,Cultural & Related,Community and Leisure ,Premises related Expenditure,Repairs Alterations & Maintenance of Buildings,Building Maint - Non Estates,23/02/2023,475872,27.62,Corrigenda Ltd
Cultural & Related,Cultural & Related,Community and Leisure ,Premises related Expenditure,Repairs Alterations & Maintenance of Buildings,Building Maint - Non Estates,23/02/2023,475873,27.62,Corrigenda Ltd
Cultural & Related,Cultural & Related,Community and Leisure ,Premises related Expenditure,Repairs Alterations & Maintenance of Buildings,Building Maint - Non Estates,23/02/2023,475874,27.62,Corrigenda Ltd
Cultural & Related,Cultural & Related,Community and Leisure ,Premises related Expenditure,Repairs Alterations & Maintenance of Buildings,Building Maint - Non Estates,23/02/2023,475875,27.62,Corrigenda Ltd
Cultural & Related,Cultural & Related,Community and Leisure ,Premises related Expenditure,Repairs Alterations & Maintenance of Buildings,Planned Maintenance - Non Est,02/02/2023,473911,27.62,Corrigenda Ltd
Cultural & Related,Cultural & Related,Community and Leisure ,Premises related Expenditure,Repairs Alterations & Maintenance of Buildings,Planned Maintenance - Non Est,02/02/2023,473912,27.62,Corrigenda Ltd
Cultural & Related,Cultural & Related,Community and Leisure ,Premises related Expenditure,Repairs Alterations & Maintenance of Buildings,Planned Maintenance - Non Est,02/02/2023,473913,27.62,Corrigenda Ltd
Cultural & Related,Cultural & Related,Community and Leisure ,Premises related Expenditure,Repairs Alterations & Maintenance of Buildings,Planned Maintenance - Non Est,02/02/2023,473914,27.62,Corrigenda Ltd
Cultural & Related,Cultural & Related,Community and Leisure ,Premises related Expenditure,Repairs Alterations & Maintenance of Buildings,Planned Maintenance - Non Est,02/02/2023,473915,27.62,Corrigenda Ltd
Cultural & Related,Cultural & Related,Community and Leisure ,Premises related Expenditure,Repairs Alterations & Maintenance of Buildings,Building Maint - Non Estates,23/02/2023,475871,169.35,Corrigenda Ltd
Cultural & Related,Cultural & Related,Community and Leisure ,Premises related Expenditure,Repairs Alterations & Maintenance of Buildings,Building Maint - Non Estates,23/02/2023,475872,169.35,Corrigenda Ltd
Cultural & Related,Cultural & Related,Community and Leisure ,Premises related Expenditure,Repairs Alterations & Maintenance of Buildings,Building Maint - Non Estates,23/02/2023,475873,169.35,Corrigenda Ltd
Cultural & Related,Cultural & Related,Community and Leisure ,Premises related Expenditure,Repairs Alterations & Maintenance of Buildings,Building Maint - Non Estates,23/02/2023,475874,169.35,Corrigenda Ltd
Cultural & Related,Cultural & Related,Community and Leisure ,Premises related Expenditure,Repairs Alterations & Maintenance of Buildings,Building Maint - Non Estates,23/02/2023,475875,169.35,Corrigenda Ltd
Cultural & Related,Cultural & Related,Community and Leisure ,Premises related Expenditure,Repairs Alterations & Maintenance of Buildings,Planned Maintenance - Non Est,02/02/2023,473911,169.35,Corrigenda Ltd
Cultural & Related,Cultural & Related,Community and Leisure ,Premises related Expenditure,Repairs Alterations & Maintenance of Buildings,Planned Maintenance - Non Est,02/02/2023,473912,171.79,Corrigenda Ltd
Cultural & Related,Cultural & Related,Community and Leisure ,Premises related Expenditure,Repairs Alterations & Maintenance of Buildings,Planned Maintenance - Non Est,02/02/2023,473913,171.79,Corrigenda Ltd
Cultural & Related,Cultural & Related,Community and Leisure ,Premises related Expenditure,Repairs Alterations & Maintenance of Buildings,Planned Maintenance - Non Est,02/02/2023,473914,171.79,Corrigenda Ltd
Cultural & Related,Cultural & Related,Community and Leisure ,Premises related Expenditure,Repairs Alterations & Maintenance of Buildings,Planned Maintenance - Non Est,02/02/2023,473915,171.79,Corrigenda Ltd
Cultural & Related,Cultural & Related,Community and Leisure ,Premises related Expenditure,Repairs Alterations & Maintenance of Buildings,Building Maint - Non Estates,23/02/2023,475871,129.72,Corrigenda Ltd
Cultural & Related,Cultural & Related,Community and Leisure ,Premises related Expenditure,Repairs Alterations & Maintenance of Buildings,Building Maint - Non Estates,23/02/2023,475872,129.72,Corrigenda Ltd
Cultural & Related,Cultural & Related,Community and Leisure ,Premises related Expenditure,Repairs Alterations & Maintenance of Buildings,Building Maint - Non Estates,23/02/2023,475873,129.72,Corrigenda Ltd
Cultural & Related,Cultural & Related,Community and Leisure ,Premises related Expenditure,Repairs Alterations & Maintenance of Buildings,Building Maint - Non Estates,23/02/2023,475874,129.72,Corrigenda Ltd
Cultural & Related,Cultural & Related,Community and Leisure ,Premises related Expenditure,Repairs Alterations & Maintenance of Buildings,Building Maint - Non Estates,23/02/2023,475875,129.72,Corrigenda Ltd
Cultural & Related,Cultural & Related,Community and Leisure ,Premises related Expenditure,Repairs Alterations & Maintenance of Buildings,Planned Maintenance - Non Est,02/02/2023,473911,129.72,Corrigenda Ltd
Cultural & Related,Cultural & Related,Community and Leisure ,Premises related Expenditure,Repairs Alterations & Maintenance of Buildings,Planned Maintenance - Non Est,02/02/2023,473912,129.72,Corrigenda Ltd
Cultural & Related,Cultural & Related,Community and Leisure ,Premises related Expenditure,Repairs Alterations & Maintenance of Buildings,Planned Maintenance - Non Est,02/02/2023,473913,129.72,Corrigenda Ltd
Cultural & Related,Cultural & Related,Community and Leisure ,Premises related Expenditure,Repairs Alterations & Maintenance of Buildings,Planned Maintenance - Non Est,02/02/2023,473914,129.72,Corrigenda Ltd
Cultural & Related,Cultural & Related,Community and Leisure ,Premises related Expenditure,Repairs Alterations & Maintenance of Buildings,Planned Maintenance - Non Est,02/02/2023,473915,129.72,Corrigenda Ltd
Cultural & Related,Cultural & Related,Community and Leisure ,Premises related Expenditure,Repairs Alterations & Maintenance of Buildings,Building Maint - Non Estates,23/02/2023,475871,1.22,Corrigenda Ltd
Cultural & Related,Cultural & Related,Community and Leisure ,Premises related Expenditure,Repairs Alterations & Maintenance of Buildings,Building Maint - Non Estates,23/02/2023,475872,1.22,Corrigenda Ltd
Cultural & Related,Cultural & Related,Community and Leisure ,Premises related Expenditure,Repairs Alterations & Maintenance of Buildings,Building Maint - Non Estates,23/02/2023,475873,1.22,Corrigenda Ltd
Cultural & Related,Cultural & Related,Community and Leisure ,Premises related Expenditure,Repairs Alterations & Maintenance of Buildings,Building Maint - Non Estates,23/02/2023,475874,1.22,Corrigenda Ltd
Cultural & Related,Cultural & Related,Community and Leisure ,Premises related Expenditure,Repairs Alterations & Maintenance of Buildings,Building Maint - Non Estates,23/02/2023,475875,1.22,Corrigenda Ltd
Environmental & Regulatory,Environmental & Regulatory,Environmental,Transport Related Expenditure,Direct Transport Costs,Repair Materials,09/02/2023,474413,620,H L Smith Transmissions Ltd
Central Services to the Public,Central Services to the Public,Legal & Democratic,Supplies & Services,"Printing, Stationery & General Office Expenses",Postage Costs,23/02/2023,475829,620.95,Financial Data Management Plc
Central Services to the Public,Central Services to the Public,Finance,Supplies & Services,"Printing, Stationery & General Office Expenses",Postage Costs,02/02/2023,473572,622.43,Whistl
Planning & Development,Planning & Development,Planning Policy & Economic Development ,Supplies & Services,Grants & Subscriptions,Grants,02/02/2023,473774,750,Irresistible Room Ltd
Central Services to the Public,Central Services to the Public,Finance,Supplies & Services,"Printing, Stationery & General Office Expenses",Postage Costs,16/02/2023,475095,626.89,Whistl
Central Services to the Public,Central Services to the Public,Premises & Asset Management,Premises related Expenditure,Energy Costs,Gas,16/02/2023,475653,629.83,Totalenergies Gas & Power Ltd
Central Services to the Public,Central Services to the Public,Premises & Asset Management,Employees,Indirect Employee Expenses,Agency Staff - Waged Posts,16/02/2023,475771,630.13,Active Staff Ltd
Environmental & Regulatory,Environmental & Regulatory,Environmental,Transport Related Expenditure,Direct Transport Costs,Repair Materials,16/02/2023,475063,632.68,Dennis Eagle Ltd
External Trading Accounts,External Trading Accounts,Premises & Asset Management,Premises related Expenditure,Cleaning and domestic supplies,Contract Cleaning - Non Estates,23/02/2023,476158,635.72,Unity
Central Services to the Public,Central Services to the Public,Legal & Democratic,Supplies & Services,"Printing, Stationery & General Office Expenses",Photocopying Costs,23/02/2023,472143,491.34,Ricoh Uk Ltd
Central Services to the Public,Central Services to the Public,Legal & Democratic,Supplies & Services,"Printing, Stationery & General Office Expenses",Photocopying Costs,23/02/2023,472143,93.21,Ricoh Uk Ltd
Environmental & Regulatory,Environmental & Regulatory,Legal & Democratic,Supplies & Services,"Printing, Stationery & General Office Expenses",Photocopying Costs,23/02/2023,472143,64.21,Ricoh Uk Ltd
Cultural & Related,Cultural & Related,Community and Leisure ,Third Party Payments,Private contractors,Main Contractor Costs,16/02/2023,474230,650,Austin Foot Ecology
Central Services to the Public,Central Services to the Public,Premises & Asset Management,Employees,Indirect Employee Expenses,Agency Staff - Waged Posts,02/02/2023,473901,656.75,Active Staff Ltd
Central Services to the Public,Central Services to the Public,Premises & Asset Management,Employees,Indirect Employee Expenses,Agency Staff - Waged Posts,16/02/2023,475567,656.75,Active Staff Ltd
Central Services to the Public,Central Services to the Public,Premises & Asset Management,Premises related Expenditure,Energy Costs,Gas,16/02/2023,475639,657.66,Totalenergies Gas & Power Ltd
Planning & Development,Planning & Development,Planning & Building,Employees,Indirect Employee Expenses,Agency Staff - Waged Posts,16/02/2023,475090,659.23,Hays Specialist Recruitment
Environmental & Regulatory,Environmental & Regulatory,Environmental,Employees,Indirect Employee Expenses,Agency Staff - Waged Posts,09/02/2023,474212,134.02,Simple Recruitment Services Ltd
Environmental & Regulatory,Environmental & Regulatory,Environmental,Employees,Indirect Employee Expenses,Agency Staff - Waged Posts,09/02/2023,474212,527.17,Simple Recruitment Services Ltd
Planning & Development,Planning & Development,Community and Leisure ,Supplies & Services,Grants & Subscriptions,Grants,23/02/2023,476384,807,Augusta Park Communtiy Centre
Cultural & Related,Cultural & Related,Community and Leisure ,Premises related Expenditure,Repairs Alterations & Maintenance of Buildings,Estates premises costs - AMP,16/02/2023,473031,675,Hrg Tree Services Ltd
Cultural & Related,Cultural & Related,Premises & Asset Management,Supplies & Services,Miscellaneous Expenses,Waste Collection,16/02/2023,475583,202.66,Suez Recycling And Recovery Uk Ltd
Central Services to the Public,Central Services to the Public,Premises & Asset Management,Supplies & Services,Miscellaneous Expenses,Waste Collection,16/02/2023,475583,478.85,Suez Recycling And Recovery Uk Ltd
Cultural & Related,Cultural & Related,Community and Leisure ,Premises related Expenditure,Grounds Maintenance Costs,Gm - Additional Works,23/02/2023,476107,682,Rocon Contractors Ltd
Cultural & Related,Cultural & Related,Community and Leisure ,Premises related Expenditure,Repairs Alterations & Maintenance of Buildings,Planned Maintenance - Non Est,16/02/2023,475868,715.31,Corrigenda Ltd
Environmental & Regulatory,Environmental & Regulatory,Housing and Environmental Health ,Supplies & Services,Grants and subscriptions,Capital Grants,16/02/2023,475622,858.8,B J C Design
Cultural & Related,Cultural & Related,Community and Leisure ,Supplies & Services,"Printing, Stationery & General Office Expenses",Licences / Affiliation Fees,16/02/2023,475748,717.37,Ppl Prs Ltd
Environmental & Regulatory,Environmental & Regulatory,Environmental,Employees,Indirect Employee Expenses,Agency Staff - Waged Posts,23/02/2023,476089,359.28,Aligra
Environmental & Regulatory,Environmental & Regulatory,Environmental,Employees,Indirect Employee Expenses,Agency Staff - Waged Posts,23/02/2023,476089,359.28,Aligra
Environmental & Regulatory,Environmental & Regulatory,Housing and Environmental Health ,Supplies & Services,Grants and subscriptions,Capital Grants,02/02/2023,474556,875.29,A & E Builders
Cultural & Related,Cultural & Related,Environmental,Supplies & Services,Miscellaneous Expenses,Waste Collection,23/02/2023,474422,732.23,Collard Enviromental Ltd
External Trading Accounts,External Trading Accounts,Premises & Asset Management,Supplies & Services,Miscellaneous Expenses,Waste Collection,16/02/2023,475569,732.96,Basingstoke Skip Hire & Sthrn Waste Mgt Ltd
Central Services to the Public,Central Services to the Public,Premises & Asset Management,Third Party Payments,Other Establishments,Private Contractors,02/02/2023,474217,885,Personal Data - Data Protection Act 1998
Environmental & Regulatory,Environmental & Regulatory,Environmental,Employees,Indirect Employee Expenses,Agency Staff - Waged Posts,23/02/2023,476110,739.12,Golden Orb Solutions
Environmental & Regulatory,Environmental & Regulatory,Environmental,Employees,Indirect Employee Expenses,Agency Staff - Waged Posts,23/02/2023,476113,312,Golden Orb Solutions
Environmental & Regulatory,Environmental & Regulatory,Environmental,Employees,Indirect Employee Expenses,Agency Staff - Waged Posts,23/02/2023,476113,427.44,Golden Orb Solutions
Central Services to the Public,Central Services to the Public,IT,Supplies & Services,"Printing, Stationery & General Office Expenses",Stationery,16/02/2023,475088,741.91,Digital Id Ltd
Central Services to the Public,Central Services to the Public,Revenues,Supplies & Services,Services,Professional Fees,09/02/2023,474733,3.47,Ross & Roberts
Cultural & Related,Cultural & Related,Environmental,Transport Related Expenditure,Direct Transport Costs,Tyres,23/02/2023,475842,123.25,Tructyre Ats
Environmental & Regulatory,Environmental & Regulatory,Environmental,Transport Related Expenditure,Direct Transport Costs,Tyres,23/02/2023,475842,231.84,Tructyre Ats
Environmental & Regulatory,Environmental & Regulatory,Environmental,Transport Related Expenditure,Direct Transport Costs,Tyres,23/02/2023,475842,105.45,Tructyre Ats
Environmental & Regulatory,Environmental & Regulatory,Environmental,Transport Related Expenditure,Direct Transport Costs,Tyres,23/02/2023,475842,60.8,Tructyre Ats
Central Services to the Public,Central Services to the Public,Environmental,Transport Related Expenditure,Direct Transport Costs,Repair Materials,23/02/2023,475842,224.6,Tructyre Ats
Environmental & Regulatory,Environmental & Regulatory,Environmental,Employees,Indirect Employee Expenses,Agency Staff - Waged Posts,09/02/2023,473560,302.69,Simple Recruitment Services Ltd
Environmental & Regulatory,Environmental & Regulatory,Environmental,Employees,Indirect Employee Expenses,Agency Staff - Waged Posts,09/02/2023,473560,446.75,Simple Recruitment Services Ltd
Central Services,Central Services,Corporate & Democratic,Supplies & Services,Services,Professional Advice,02/02/2023,472130,750,Dc Commercial Solicitors
Central Services,Central Services,Corporate & Democratic,Supplies & Services,Services,Professional Advice,02/02/2023,472131,750,Dc Commercial Solicitors
Central Services,Central Services,Corporate & Democratic,Supplies & Services,Services,Professional Advice,02/02/2023,472133,750,Dc Commercial Solicitors
Cultural & Related,Cultural & Related,Community and Leisure ,Supplies & Services,Miscellaneous Expenses,Other Miscellaneous Costs,02/02/2023,474444,750,Personal Data - Data Protection Act 1998
Planning & Development,Planning & Development,Community and Leisure ,Supplies & Services,Grants & Subscriptions,Grants,16/02/2023,475618,917.4,Rcs Ltd
Central Services to the Public,Central Services to the Public,IT,Supplies & Services,Communications & Computing,Communication Links,16/02/2023,474370,765.94,Nominet
Central Services to the Public,Central Services to the Public,Premises & Asset Management,Supplies & Services,Communications & Computing,Telephone Tracking System,09/02/2023,474407,48,Teletrac Navman (Uk) Ltd
Environmental & Regulatory,Environmental & Regulatory,Housing and Environmental Health ,Supplies & Services,Communications & Computing,Telephone Tracking System,09/02/2023,474407,6,Teletrac Navman (Uk) Ltd
Environmental & Regulatory,Environmental & Regulatory,Housing and Environmental Health ,Supplies & Services,Communications & Computing,Telephone Tracking System,09/02/2023,474407,12,Teletrac Navman (Uk) Ltd
Cultural & Related,Cultural & Related,Community and Leisure ,Supplies & Services,Communications & Computing,Telephone Tracking System,09/02/2023,474407,6,Teletrac Navman (Uk) Ltd
Cultural & Related,Cultural & Related,Community and Leisure ,Supplies & Services,Communications & Computing,Telephone Tracking System,09/02/2023,474407,6,Teletrac Navman (Uk) Ltd
"Highways, Roads & Transport","Highways, Roads & Transport",Plan Pol & Transport,Supplies & Services,Communications & Computing,Telephone Tracking System,09/02/2023,474407,12,Teletrac Navman (Uk) Ltd
Cultural & Related,Cultural & Related,Environmental,Supplies & Services,Communications & Computing,Telephone Tracking System,09/02/2023,474407,299.99,Teletrac Navman (Uk) Ltd
Environmental & Regulatory,Environmental & Regulatory,Environmental,Supplies & Services,Communications & Computing,Telephone Tracking System,09/02/2023,474407,36,Teletrac Navman (Uk) Ltd
Environmental & Regulatory,Environmental & Regulatory,Environmental,Supplies & Services,Communications & Computing,Telephone Tracking System,09/02/2023,474407,174.7,Teletrac Navman (Uk) Ltd
Environmental & Regulatory,Environmental & Regulatory,Environmental,Supplies & Services,Communications & Computing,Telephone Tracking System,09/02/2023,474407,136.6,Teletrac Navman (Uk) Ltd
Environmental & Regulatory,Environmental & Regulatory,Environmental,Supplies & Services,Communications & Computing,Telephone Tracking System,09/02/2023,474407,12,Teletrac Navman (Uk) Ltd
Central Services to the Public,Central Services to the Public,Environmental,Supplies & Services,Communications & Computing,Telephone Tracking System,09/02/2023,474407,18,Teletrac Navman (Uk) Ltd
Central Services to the Public,Central Services to the Public,Environmental,Transport Related Expenditure,Direct Transport Costs,Repair Materials,16/02/2023,475074,771.54,Dennis Eagle Ltd
External Trading Accounts,External Trading Accounts,Premises & Asset Management,Premises related Expenditure,Energy Costs,Gas,16/02/2023,475646,772.95,Totalenergies Gas & Power Ltd
Planning & Development,Planning & Development,Planning & Building,Employees,Indirect Employee Expenses,Agency Staff - Waged Posts,02/02/2023,474234,779.09,Hays Specialist Recruitment
Central Services to the Public,Central Services to the Public,Legal & Democratic,Employees,Indirect Employee Expenses,Agency Staff - Waged Posts,02/02/2023,473867,780,Sellick Partnership Ltd
Cultural & Related,Cultural & Related,Premises & Asset Management,Premises related Expenditure,Energy Costs,Gas,16/02/2023,475627,792.92,Totalenergies Gas & Power Ltd
Cultural & Related,Cultural & Related,Premises & Asset Management,Premises related Expenditure,Repairs Alterations & Maintenance of Buildings,Planned Maintenance - Non Est,16/02/2023,475606,100,Doorgear Limited
Central Services to the Public,Central Services to the Public,Premises & Asset Management,Premises related Expenditure,Repairs Alterations & Maintenance of Buildings,Planned Maintenance - Non Est,16/02/2023,475606,100,Doorgear Limited
Environmental & Regulatory,Environmental & Regulatory,Premises & Asset Management,Premises related Expenditure,Repairs Alterations & Maintenance of Buildings,Planned Maintenance - Non Est,16/02/2023,475606,100,Doorgear Limited
Cultural & Related,Cultural & Related,Community and Leisure ,Premises related Expenditure,Repairs Alterations & Maintenance of Buildings,Planned Maintenance - Non Est,16/02/2023,475606,225,Doorgear Limited
Cultural & Related,Cultural & Related,Community and Leisure ,Premises related Expenditure,Repairs Alterations & Maintenance of Buildings,Planned Maintenance - Non Est,16/02/2023,475606,270,Doorgear Limited
Environmental & Regulatory,Environmental & Regulatory,Environmental,Employees,Indirect Employee Expenses,Agency Staff - Waged Posts,09/02/2023,474421,797.54,Golden Orb Solutions
Central Services to the Public,Central Services to the Public,Environmental,Transport Related Expenditure,Direct Transport Costs,Repair Materials,16/02/2023,475065,800.26,Dennis Eagle Ltd
Central Services to the Public,Central Services to the Public,Premises & Asset Management,Third Party Payments,Other Establishments,Private Contractors,16/02/2023,474408,810.39,Zip Heaters (Uk) Ltd
External Trading Accounts,External Trading Accounts,Premises & Asset Management,Premises related Expenditure,Cleaning and domestic supplies,Contract Cleaning - Non Estates,16/02/2023,475549,974.57,Andover Pcn
Central Services to the Public,Central Services to the Public,Premises & Asset Management,Premises related Expenditure,Energy Costs,Gas,16/02/2023,475640,821.18,Totalenergies Gas & Power Ltd
Central Services to the Public,Central Services to the Public,Legal & Democratic,Supplies & Services,Services,Legal Fees,09/02/2023,474786,825,Cornerstone Barristers
Cultural & Related,Cultural & Related,Premises & Asset Management,Premises related Expenditure,Energy Costs,Gas,16/02/2023,475647,825.89,Totalenergies Gas & Power Ltd
Environmental & Regulatory,Environmental & Regulatory,Community and Leisure ,Supplies & Services,Grants & Subscriptions,Grants,16/02/2023,473943,1000,Parish Church Of Somborne With Ashley
Planning & Development,Planning & Development,Community and Leisure ,Supplies & Services,Grants & Subscriptions,Grants,16/02/2023,475617,1000,Ampfield Village Hall
Planning & Development,Planning & Development,Community and Leisure ,Supplies & Services,Grants & Subscriptions,Grants,16/02/2023,475620,1000,Tangley Parish Council
Planning & Development,Planning & Development,Community and Leisure ,Supplies & Services,Grants & Subscriptions,Grants,23/02/2023,476370,1000,Unity
Planning & Development,Planning & Development,Community and Leisure ,Supplies & Services,Grants & Subscriptions,Grants,23/02/2023,476385,1000,Unity
Central Services to the Public,Central Services to the Public,Plan Pol & Transport,Supplies & Services,Grants & Subscriptions,Grants,09/02/2023,475287,1000,Awbridge Parish Council
Planning & Development,Planning & Development,Community and Leisure ,Supplies & Services,Grants & Subscriptions,Grants,02/02/2023,474536,1000,Baddesley Park Fc
Central Services to the Public,Central Services to the Public,Premises & Asset Management,Third Party Payments,Other Establishments,Private Contractors,02/02/2023,473891,1035,Personal Data - Data Protection Act 1998
Environmental & Regulatory,Environmental & Regulatory,Housing and Environmental Health ,Supplies & Services,"Equipment, Furniture & Materials",Purchase Equip + Materials,16/02/2023,474368,862.75,Socotec Uk Ltd
Environmental & Regulatory,Environmental & Regulatory,Environmental,Supplies & Services,"Equipment, Furniture & Materials",Purchase Equip + Materials,02/02/2023,473563,868.7,Frontier Plastics Limited
Central Services to the Public,Central Services to the Public,Legal & Democratic,Employees,Indirect Employee Expenses,Agency Staff - Waged Posts,09/02/2023,474187,870,Sellick Partnership Ltd
Cultural & Related,Cultural & Related,Community and Leisure ,Supplies & Services,"Printing, Stationery & General Office Expenses",Licences / Affiliation Fees,16/02/2023,475766,870.16,Ppl Prs Ltd
Central Services to the Public,Central Services to the Public,Premises & Asset Management,Third Party Payments,Other Establishments,Private Contractors,23/02/2023,476105,1050,Personal Data - Data Protection Act 1998
Cultural & Related,Cultural & Related,Community and Leisure ,Premises related Expenditure,Grounds Maintenance Costs,Gm - Additional Works,02/02/2023,474188,880,Personal Data - Data Protection Act 1998
External Trading Accounts,External Trading Accounts,Premises & Asset Management,Premises related Expenditure,Repairs Alterations & Maintenance of Buildings,Planned Maintenance - Non Est,02/02/2023,473745,885,Healthy Buildings International
Central Services to the Public,Central Services to the Public,IT,Supplies & Services,Communications & Computing,Land Line Telephone Charges,16/02/2023,475591,885.86,Gamma
Cultural & Related,Cultural & Related,Premises & Asset Management,Premises related Expenditure,Energy Costs,Gas,16/02/2023,475630,902.39,Totalenergies Gas & Power Ltd
Environmental & Regulatory,Environmental & Regulatory,Community and Leisure ,Supplies & Services,Grants & Subscriptions,Grants,23/02/2023,476395,1083,Somborne Community Cinema
Central Services to the Public,Central Services to the Public,Premises & Asset Management,Third Party Payments,Other Establishments,Private Contractors,09/02/2023,474735,1090,Personal Data - Data Protection Act 1998
Cultural & Related,Cultural & Related,Community and Leisure ,Supplies & Services,"Printing, Stationery & General Office Expenses",Licences / Affiliation Fees,16/02/2023,475767,914.9,Ppl Prs Ltd
Environmental & Regulatory,Environmental & Regulatory,Housing and Environmental Health ,Supplies & Services,Grants and subscriptions,Capital Grants,02/02/2023,474540,1100,Carpet Cleaning Lady
Central Services to the Public,Central Services to the Public,Revenues,Supplies & Services,Communications & Computing,Software Maintenance,23/02/2023,474177,925,Nec Software Solutions Uk Limited
External Trading Accounts,External Trading Accounts,Premises & Asset Management,Premises related Expenditure,Energy Costs,Electricity,02/02/2023,473858,943.96,Totalenergies Gas & Power Ltd
Environmental & Regulatory,Environmental & Regulatory,Housing and Environmental Health ,Employees,Indirect Employee Expenses,Agency Staff - Waged Posts,02/02/2023,474183,946.45,The Oyster Partnership Ltd
Central Services to the Public,Central Services to the Public,IT,Supplies & Services,"Equipment, Furniture & Materials",IT Supp and Serv AMP,02/02/2023,473937,952.19,Exampleit Ltd
Environmental & Regulatory,Environmental & Regulatory,Environmental,Employees,Indirect Employee Expenses,Agency Staff - Waged Posts,23/02/2023,476112,250.27,Golden Orb Solutions
Environmental & Regulatory,Environmental & Regulatory,Environmental,Employees,Indirect Employee Expenses,Agency Staff - Waged Posts,23/02/2023,476112,712.4,Golden Orb Solutions
Cultural & Related,Cultural & Related,Premises & Asset Management,Premises related Expenditure,Energy Costs,Gas,16/02/2023,475641,968.63,Totalenergies Gas & Power Ltd
External Trading Accounts,External Trading Accounts,Premises & Asset Management,Premises related Expenditure,Energy Costs,Electricity,16/02/2023,475579,1105.29,Smartestenergy Business Limited
Environmental & Regulatory,Environmental & Regulatory,Environmental,Transport Related Expenditure,Direct Transport Costs,Repair Materials,23/02/2023,476130,996.69,Dennis Eagle Ltd
Cultural & Related,Cultural & Related,Community and Leisure ,Supplies & Services,Miscellaneous Expenses,Promotions / Special Events,23/02/2023,474389,1000,Norwich Puppet Theatre Ltd
Cultural & Related,Cultural & Related,Community and Leisure ,Premises related Expenditure,Grounds Maintenance Costs,Gm - Additional Works,09/02/2023,474201,1000,Apsley Farms Sales Limited
Cultural & Related,Cultural & Related,Community and Leisure ,Premises related Expenditure,Grounds Maintenance Costs,Snagging Works,23/02/2023,475833,1010,Boddingtons Planning
Central Services to the Public,Central Services to the Public,HR Services,Supplies & Services,Miscellaneous Expenses,Medical Fees,02/02/2023,470757,1218.5,Citydoc Medical Limited-Cit-Mobile
Environmental & Regulatory,Environmental & Regulatory,Environmental,Transport Related Expenditure,Direct Transport Costs,Tyres,23/02/2023,475879,596.37,Tructyre Ats
Environmental & Regulatory,Environmental & Regulatory,Environmental,Transport Related Expenditure,Direct Transport Costs,Tyres,23/02/2023,475879,438.66,Tructyre Ats
Cultural & Related,Cultural & Related,Premises & Asset Management,Premises related Expenditure,Energy Costs,Gas,16/02/2023,475645,1035.19,Totalenergies Gas & Power Ltd
Environmental & Regulatory,Environmental & Regulatory,Community and Leisure ,Supplies & Services,Services,Training Courses,02/02/2023,474216,1045,Cspt Ltd T/A Resolve
Environmental & Regulatory,Environmental & Regulatory,Environmental,Employees,Indirect Employee Expenses,Agency Staff - Waged Posts,02/02/2023,474205,841.2,Drive Personnel
Environmental & Regulatory,Environmental & Regulatory,Environmental,Employees,Indirect Employee Expenses,Agency Staff - Waged Posts,09/02/2023,474785,1051.5,Drive Personnel
Environmental & Regulatory,Environmental & Regulatory,Environmental,Employees,Indirect Employee Expenses,Agency Staff - Waged Posts,02/02/2023,474205,210.3,Drive Personnel
Central Services to the Public,Central Services to the Public,Environmental,Supplies & Services,Services,Training Courses,16/02/2023,475067,1060,Mot Learning Services
Central Services to the Public,Central Services to the Public,HR Services,Supplies & Services,Miscellaneous Expenses,Medical Fees,02/02/2023,470752,1272.5,Citydoc Medical Limited-Cit-Mobile
Central Services to the Public,Central Services to the Public,IT,Supplies & Services,Communications & Computing,Computer Software,09/02/2023,473021,1286.54,Winchester City Council
Environmental & Regulatory,Environmental & Regulatory,Environmental,Employees,Indirect Employee Expenses,Agency Staff - Waged Posts,16/02/2023,475544,598.8,Aligra
Environmental & Regulatory,Environmental & Regulatory,Environmental,Employees,Indirect Employee Expenses,Agency Staff - Waged Posts,16/02/2023,475544,479.04,Aligra
"Highways, Roads & Transport","Highways, Roads & Transport",Plan Pol & Transport,Supplies & Services,Services,Professional Fees,09/02/2023,474424,1084.99,Advam (Uk) Limited
Central Services to the Public,Central Services to the Public,Premises & Asset Management,Premises related Expenditure,Repairs Alterations & Maintenance of Buildings,Planned Maintenance - Non Est,09/02/2023,474751,1087.45,Pattco
Central Services to the Public,Central Services to the Public,IT,Supplies & Services,"Equipment, Furniture & Materials",IT Supp and Serv AMP,02/02/2023,473747,1112.16,Scc
Cultural & Related,Cultural & Related,Community and Leisure ,Premises related Expenditure,Repairs Alterations & Maintenance of Buildings,Estates premises costs - AMP,09/02/2023,474741,1120,Hoare Tree Services Ltd
Cultural & Related,Cultural & Related,Environmental,Supplies & Services,Services,Training Courses,09/02/2023,474759,1130,Grounds Mananagement Association
Cultural & Related,Cultural & Related,Community and Leisure ,Supplies & Services,"Equipment, Furniture & Materials",Purchase Equip + Materials,22/02/2023,476139,1140.7,Catering Appliance Superstore
Cultural & Related,Cultural & Related,Community and Leisure ,Supplies & Services,"Equipment, Furniture & Materials",Purchase Equip + Materials,16/02/2023,474443,1144,Falco Uk Ltd
Central Services to the Public,Central Services to the Public,Premises & Asset Management,Employees,Indirect Employee Expenses,Agency Staff - Waged Posts,16/02/2023,473095,1200,Hays Specialist Recruitment
Cultural & Related,Cultural & Related,Estates and Economic Development ,Third Party Payments,Private contractors,Main Contractor Costs,09/02/2023,475089,1040,Jwt Consultancy
Central Services to the Public,Central Services to the Public,Estates and Economic Development ,Third Party Payments,Private contractors,Main Contractor Costs,09/02/2023,475089,280,Jwt Consultancy
Cultural & Related,Cultural & Related,Community and Leisure ,Premises related Expenditure,Grounds Maintenance Costs,Gm - Additional Works,09/02/2023,475089,120,Jwt Consultancy
Cultural & Related,Cultural & Related,Community and Leisure ,Premises related Expenditure,Grounds Maintenance Costs,Gm - Additional Works,23/02/2023,476083,1200,Personal Data - Data Protection Act 1998
Planning & Development,Planning & Development,Plan Pol & Transport,Employees,Indirect Employee Expenses,Advertising Of Vacancies,09/02/2023,474757,1205,Redactive Publishing Ltd
Environmental & Regulatory,Environmental & Regulatory,Environmental,Employees,Indirect Employee Expenses,Agency Staff - Waged Posts,02/02/2023,474409,598.8,Aligra
Environmental & Regulatory,Environmental & Regulatory,Environmental,Employees,Indirect Employee Expenses,Agency Staff - Waged Posts,02/02/2023,474409,606.29,Aligra
Environmental & Regulatory,Environmental & Regulatory,Housing and Environmental Health ,Employees,Indirect Employee Expenses,Agency Staff - Waged Posts,23/02/2023,476123,1226.9,The Oyster Partnership Ltd
Cultural & Related,Cultural & Related,Community and Leisure ,Premises related Expenditure,Repairs Alterations & Maintenance of Buildings,Estates premises costs - AMP,16/02/2023,473924,1238,Groundlord Ltd
Central Services to the Public,Central Services to the Public,Environmental,Transport Related Expenditure,Direct Transport Costs,Repair Materials,16/02/2023,475064,1241.41,Dennis Eagle Ltd
Central Services to the Public,Central Services to the Public,Premises & Asset Management,Supplies & Services,Services,Project Consultancy - Policy,02/02/2023,474184,1490,Langstrath Consultancy Limited
Central Services to the Public,Central Services to the Public,Premises & Asset Management,Premises related Expenditure,Energy Costs,Gas,16/02/2023,475631,1265.27,Totalenergies Gas & Power Ltd
Cultural & Related,Cultural & Related,Premises & Asset Management,Premises related Expenditure,Energy Costs,Gas,16/02/2023,475729,1295.11,Totalenergies Gas & Power Ltd
Cultural & Related,Cultural & Related,Community and Leisure ,Supplies & Services,Miscellaneous Expenses,Promotions / Special Events,02/02/2023,473515,1562.35,Andover Town Centre Bid Ltd
Central Services to the Public,Central Services to the Public,Premises & Asset Management,Premises related Expenditure,Energy Costs,Gas,16/02/2023,475727,1308.08,Totalenergies Gas & Power Ltd
Central Services to the Public,Central Services to the Public,Environmental,Transport Related Expenditure,Direct Transport Costs,Workshop Consumables,23/02/2023,475890,766.42,Md Services (Andover) Ltd
Central Services to the Public,Central Services to the Public,Environmental,Transport Related Expenditure,Direct Transport Costs,Repair Materials,23/02/2023,475890,519.35,Md Services (Andover) Ltd
Central Services to the Public,Central Services to the Public,Environmental,Supplies & Services,"Equipment, Furniture & Materials",Purchase Tools,23/02/2023,475890,37.27,Md Services (Andover) Ltd
Cultural & Related,Cultural & Related,Premises & Asset Management,Premises related Expenditure,Energy Costs,Gas,16/02/2023,475648,1323.68,Totalenergies Gas & Power Ltd
Cultural & Related,Cultural & Related,Community and Leisure ,Premises related Expenditure,Repairs Alterations & Maintenance of Buildings,Estates premises costs - AMP,16/02/2023,473925,1338,Groundlord Ltd
Central Services to the Public,Central Services to the Public,Estates and Economic Development ,Third Party Payments,Private contractors,Main Contractor Costs,16/02/2023,475555,1375,Andrew Waring Associates Ltd
External Trading Accounts,External Trading Accounts,Premises & Asset Management,Premises related Expenditure,Repairs Alterations & Maintenance of Buildings,Planned Maintenance - Non Est,02/02/2023,471360,155,Tls Fire & Security Llp
External Trading Accounts,External Trading Accounts,Premises & Asset Management,Premises related Expenditure,Repairs Alterations & Maintenance of Buildings,Planned Maintenance - Non Est,02/02/2023,471360,21,Tls Fire & Security Llp
Central Services to the Public,Central Services to the Public,Premises & Asset Management,Premises related Expenditure,Repairs Alterations & Maintenance of Buildings,Planned Maintenance - Non Est,02/02/2023,471360,383,Tls Fire & Security Llp
Central Services to the Public,Central Services to the Public,Premises & Asset Management,Premises related Expenditure,Repairs Alterations & Maintenance of Buildings,Planned Maintenance - Non Est,02/02/2023,471360,181,Tls Fire & Security Llp
Central Services to the Public,Central Services to the Public,Premises & Asset Management,Premises related Expenditure,Repairs Alterations & Maintenance of Buildings,Planned Maintenance - Non Est,02/02/2023,471360,258,Tls Fire & Security Llp
Cultural & Related,Cultural & Related,Community and Leisure ,Premises related Expenditure,Repairs Alterations & Maintenance of Buildings,Planned Maintenance - Non Est,02/02/2023,471360,24,Tls Fire & Security Llp
Cultural & Related,Cultural & Related,Community and Leisure ,Premises related Expenditure,Repairs Alterations & Maintenance of Buildings,Planned Maintenance - Non Est,02/02/2023,471360,9,Tls Fire & Security Llp
Cultural & Related,Cultural & Related,Community and Leisure ,Premises related Expenditure,Repairs Alterations & Maintenance of Buildings,Planned Maintenance - Non Est,02/02/2023,471360,65,Tls Fire & Security Llp
Cultural & Related,Cultural & Related,Community and Leisure ,Premises related Expenditure,Repairs Alterations & Maintenance of Buildings,Planned Maintenance - Non Est,02/02/2023,471360,68,Tls Fire & Security Llp
Cultural & Related,Cultural & Related,Community and Leisure ,Premises related Expenditure,Repairs Alterations & Maintenance of Buildings,Planned Maintenance - Non Est,02/02/2023,471360,24,Tls Fire & Security Llp
Environmental & Regulatory,Environmental & Regulatory,Community and Leisure ,Premises related Expenditure,Repairs Alterations & Maintenance of Buildings,Planned Maintenance - Non Est,02/02/2023,471360,21,Tls Fire & Security Llp
Environmental & Regulatory,Environmental & Regulatory,Community and Leisure ,Premises related Expenditure,Repairs Alterations & Maintenance of Buildings,Planned Maintenance - Non Est,02/02/2023,471360,9,Tls Fire & Security Llp
Cultural & Related,Cultural & Related,Community and Leisure ,Premises related Expenditure,Repairs Alterations & Maintenance of Buildings,Planned Maintenance - Non Est,02/02/2023,471360,135,Tls Fire & Security Llp
"Highways, Roads & Transport","Highways, Roads & Transport",Plan Pol & Transport,Premises related Expenditure,Repairs Alterations & Maintenance of Buildings,Planned Maintenance - Non Est,02/02/2023,471360,30,Tls Fire & Security Llp
Environmental & Regulatory,Environmental & Regulatory,Environmental,Employees,Indirect Employee Expenses,Agency Staff - Waged Posts,02/02/2023,474175,1254.49,Golden Orb Solutions
Environmental & Regulatory,Environmental & Regulatory,Environmental,Employees,Indirect Employee Expenses,Agency Staff - Waged Posts,02/02/2023,474175,142.48,Golden Orb Solutions
Environmental & Regulatory,Environmental & Regulatory,Environmental,Employees,Indirect Employee Expenses,Agency Staff - Waged Posts,23/02/2023,473556,1421.94,Simple Recruitment Services Ltd
Cultural & Related,Cultural & Related,Environmental,Supplies & Services,"Equipment, Furniture & Materials",Purchase Equip + Materials,09/02/2023,474762,1434,Tudor Environmental
Environmental & Regulatory,Environmental & Regulatory,Environmental,Employees,Indirect Employee Expenses,Agency Staff - Waged Posts,23/02/2023,476318,598.8,Aligra
Environmental & Regulatory,Environmental & Regulatory,Environmental,Employees,Indirect Employee Expenses,Agency Staff - Waged Posts,23/02/2023,476318,838.32,Aligra
Central Services to the Public,Central Services to the Public,Premises & Asset Management,Employees,Indirect Employee Expenses,Agency Staff - Waged Posts,09/02/2023,474760,1440,Hays Specialist Recruitment
Environmental & Regulatory,Environmental & Regulatory,Legal & Democratic,Supplies & Services,Services,Training Courses,02/02/2023,473863,1457.43,Button Training Limited
"Highways, Roads & Transport","Highways, Roads & Transport",Plan Pol & Transport,Third Party Payments,Transport Operators in Respect of Concessionary Fares,Voluntary Orgs Reimbursement,02/02/2023,474366,1751,Andover Neighbourcare
Central Services to the Public,Central Services to the Public,Revenues,Supplies & Services,"Printing, Stationery & General Office Expenses",Stationery,16/02/2023,475543,1473.6,Hound Envelopes Limited
Environmental & Regulatory,Environmental & Regulatory,Community and Leisure ,Supplies & Services,Miscellaneous Expenses,National Assist Act Burials,09/02/2023,474736,1773,A H Cheater Ltd Funeral Directors
Cultural & Related,Cultural & Related,Community and Leisure ,Supplies & Services,Miscellaneous Expenses,Booking Of Acts,16/02/2023,475796,1480.67,Off The Kerb Productions
Central Services to the Public,Central Services to the Public,Premises & Asset Management,Supplies & Services,Miscellaneous Expenses,Health And Safety,02/02/2023,473889,1800,Sm Safety Trg & Consultancy Ltd
Central Services to the Public,Central Services to the Public,Premises & Asset Management,Premises related Expenditure,Energy Costs,Gas,16/02/2023,475649,1582.28,Totalenergies Gas & Power Ltd
Central Services to the Public,Central Services to the Public,Premises & Asset Management,Premises related Expenditure,Repairs Alterations & Maintenance of Buildings,Estates premises costs - AMP,23/02/2023,476152,1600,The Genesis Design Studio Ltd
Central Services to the Public,Central Services to the Public,Premises & Asset Management,Premises related Expenditure,Energy Costs,Gas,16/02/2023,475657,1639.34,Totalenergies Gas & Power Ltd
Cultural & Related,Cultural & Related,Community and Leisure ,Premises related Expenditure,Repairs Alterations & Maintenance of Buildings,Planned Maintenance - Non Est,16/02/2023,475870,1654.09,Corrigenda Ltd
Planning & Development,Planning & Development,Community and Leisure ,Supplies & Services,Grants & Subscriptions,Grants,16/02/2023,475883,2000,Dragonfly Power
Planning & Development,Planning & Development,Plan Pol & Transport,Supplies & Services,Grants & Subscriptions,Contributions,16/02/2023,474772,2000,Southampton City Council
Central Services to the Public,Central Services to the Public,Premises & Asset Management,Supplies & Services,Services,Professional Fees,23/02/2023,473491,1704.5,Wilks Head & Eve Llp
Central Services to the Public,Central Services to the Public,Premises & Asset Management,Employees,Indirect Employee Expenses,Agency Staff - Waged Posts,16/02/2023,468743,1716,Hays Specialist Recruitment
Environmental & Regulatory,Environmental & Regulatory,Legal & Democratic,Supplies & Services,Communications & Computing,Computer Hardware,23/02/2023,476128,1746,Exampleit Ltd
Environmental & Regulatory,Environmental & Regulatory,Environmental,Transport Related Expenditure,Direct Transport Costs,Repair Materials,23/02/2023,475867,1764.56,Dennis Eagle Ltd
Planning & Development,Planning & Development,Plan Pol & Transport,Supplies & Services,Services,Project Consultancy - Policy,16/02/2023,475082,1785,Portsmouth City Council
Planning & Development,Planning & Development,Planning & Building,Employees,Indirect Employee Expenses,Agency Staff - Waged Posts,09/02/2023,474376,1863.6,Hays Specialist Recruitment
Cultural & Related,Cultural & Related,Community and Leisure ,Premises related Expenditure,Repairs Alterations & Maintenance of Buildings,Estates premises costs - AMP,09/02/2023,474744,1950,Tree Technique Ltd
Cultural & Related,Cultural & Related,Community and Leisure ,Supplies & Services,Services,Professional Fees,09/02/2023,474226,1955,Blake Morgan
Cultural & Related,Cultural & Related,Community and Leisure ,Supplies & Services,Miscellaneous Expenses,Booking Of Acts,23/02/2023,476114,2370,Fever Productions
Planning & Development,Planning & Development,Plan Pol & Transport,Employees,Indirect Employee Expenses,Temporary Staff,09/02/2023,474771,1984,Vivid Resourcing
Environmental & Regulatory,Environmental & Regulatory,Housing and Environmental Health ,Supplies & Services,Miscellaneous Expenses,Kennel fees,02/02/2023,473756,1998.82,Three Oak Boarding Kennels
Cultural & Related,Cultural & Related,Community and Leisure ,Premises related Expenditure,Repairs Alterations & Maintenance of Buildings,Estates premises costs - AMP,09/02/2023,474200,2000,Apsley Farms Sales Limited
Cultural & Related,Cultural & Related,Community and Leisure ,Premises related Expenditure,Repairs Alterations & Maintenance of Buildings,Estates premises costs - AMP,02/02/2023,473930,2015,Hoare Tree Services Ltd
Cultural & Related,Cultural & Related,Community and Leisure ,Premises related Expenditure,Grounds Maintenance Costs,Snagging Works,09/02/2023,475047,2491.49,Sui Generis International Ltd
Cultural & Related,Cultural & Related,Community and Leisure ,Premises related Expenditure,Repairs Alterations & Maintenance of Buildings,Estates premises costs - AMP,09/02/2023,474743,2095,Hoare Tree Services Ltd
Planning & Development,Planning & Development,Planning & Building,Employees,Indirect Employee Expenses,Agency Staff - Waged Posts,02/02/2023,473926,2165.35,Hays Specialist Recruitment
Cultural & Related,Cultural & Related,Community and Leisure ,Supplies & Services,Miscellaneous Expenses,Booking Of Acts,16/02/2023,475105,2186.25,Mcguire Management
Planning & Development,Planning & Development,Planning & Building,Employees,Indirect Employee Expenses,Agency Staff - Waged Posts,16/02/2023,475036,2193.74,Hays Specialist Recruitment
Central Services to the Public,Central Services to the Public,Premises & Asset Management,Employees,Indirect Employee Expenses,Agency Staff - Waged Posts,02/02/2023,473927,2220,Hays Specialist Recruitment
Central Services to the Public,Central Services to the Public,HR Services,Third Party Payments,Other Local Authorities,Shared Service Contract Costs,02/02/2023,471459,2396.16,Mhr International Uk Ltd
Central Services to the Public,Central Services to the Public,HR Services,Third Party Payments,Other Local Authorities,Shared Service Contract Costs,02/02/2023,474365,2396.16,Mhr International Uk Ltd
Environmental & Regulatory,Environmental & Regulatory,Housing and Environmental Health ,Supplies & Services,Grants and subscriptions,Capital Grants,23/02/2023,476380,2902.84,B J C Design
Cultural & Related,Cultural & Related,Premises & Asset Management,Premises related Expenditure,Energy Costs,Gas,16/02/2023,475642,2433.81,Totalenergies Gas & Power Ltd
Central Services to the Public,Central Services to the Public,Premises & Asset Management,Employees,Indirect Employee Expenses,Agency Staff - Waged Posts,02/02/2023,473755,2500,Park Avenue Recruitment
Cultural & Related,Cultural & Related,Community and Leisure ,Supplies & Services,"Equipment, Furniture & Materials",Purchase Equip + Materials,23/02/2023,476392,2500,Personal Data - Data Protection Act 1998
Cultural & Related,Cultural & Related,Community and Leisure ,Premises related Expenditure,Repairs Alterations & Maintenance of Buildings,Estates premises costs - AMP,02/02/2023,473856,2500,Personal Data - Data Protection Act 1998
Cultural & Related,Cultural & Related,Community and Leisure ,Premises related Expenditure,Repairs Alterations & Maintenance of Buildings,Estates premises costs - AMP,23/02/2023,476159,2500,Personal Data - Data Protection Act 1998
Cultural & Related,Cultural & Related,Community and Leisure ,Supplies & Services,Miscellaneous Expenses,Booking Of Acts,09/02/2023,475044,2559.38,Speakers From The Edge Ltd
External Trading Accounts,External Trading Accounts,Premises & Asset Management,Premises related Expenditure,Repairs Alterations & Maintenance of Buildings,Planned Maintenance - Non Est,16/02/2023,475604,287.5,Doorgear Limited
External Trading Accounts,External Trading Accounts,Premises & Asset Management,Premises related Expenditure,Repairs Alterations & Maintenance of Buildings,Planned Maintenance - Non Est,16/02/2023,475604,780,Doorgear Limited
Cultural & Related,Cultural & Related,Premises & Asset Management,Premises related Expenditure,Repairs Alterations & Maintenance of Buildings,Planned Maintenance - Non Est,16/02/2023,475604,100,Doorgear Limited
Cultural & Related,Cultural & Related,Premises & Asset Management,Premises related Expenditure,Repairs Alterations & Maintenance of Buildings,Planned Maintenance - Non Est,16/02/2023,475604,80,Doorgear Limited
Cultural & Related,Cultural & Related,Premises & Asset Management,Premises related Expenditure,Repairs Alterations & Maintenance of Buildings,Planned Maintenance - Non Est,16/02/2023,475604,207,Doorgear Limited
Cultural & Related,Cultural & Related,Premises & Asset Management,Premises related Expenditure,Repairs Alterations & Maintenance of Buildings,Planned Maintenance - Non Est,16/02/2023,475604,100,Doorgear Limited
Cultural & Related,Cultural & Related,Premises & Asset Management,Premises related Expenditure,Repairs Alterations & Maintenance of Buildings,Planned Maintenance - Non Est,16/02/2023,475604,245,Doorgear Limited
Central Services to the Public,Central Services to the Public,Premises & Asset Management,Premises related Expenditure,Repairs Alterations & Maintenance of Buildings,Planned Maintenance - Non Est,16/02/2023,475604,150,Doorgear Limited
Central Services to the Public,Central Services to the Public,Premises & Asset Management,Premises related Expenditure,Repairs Alterations & Maintenance of Buildings,Planned Maintenance - Non Est,16/02/2023,475604,300,Doorgear Limited
Cultural & Related,Cultural & Related,Community and Leisure ,Premises related Expenditure,Repairs Alterations & Maintenance of Buildings,Planned Maintenance - Non Est,16/02/2023,475604,270,Doorgear Limited
Cultural & Related,Cultural & Related,Community and Leisure ,Premises related Expenditure,Repairs Alterations & Maintenance of Buildings,Planned Maintenance - Non Est,16/02/2023,475604,100,Doorgear Limited
Cultural & Related,Cultural & Related,Environmental,Transport Related Expenditure,Direct Transport Costs,Tyres,09/02/2023,474387,68.3,Tructyre Ats
Environmental & Regulatory,Environmental & Regulatory,Environmental,Transport Related Expenditure,Direct Transport Costs,Tyres,09/02/2023,474387,1318.53,Tructyre Ats
Environmental & Regulatory,Environmental & Regulatory,Environmental,Transport Related Expenditure,Direct Transport Costs,Tyres,09/02/2023,474387,85.81,Tructyre Ats
Environmental & Regulatory,Environmental & Regulatory,Environmental,Transport Related Expenditure,Direct Transport Costs,Tyres,09/02/2023,474387,960.64,Tructyre Ats
Central Services to the Public,Central Services to the Public,Environmental,Transport Related Expenditure,Direct Transport Costs,Repair Materials,09/02/2023,474387,196,Tructyre Ats
Central Services to the Public,Central Services to the Public,Premises & Asset Management,Supplies & Services,Communications & Computing,Software Maintenance,16/02/2023,473067,2640.32,Integrated Solutions Ltd
Central Services to the Public,Central Services to the Public,Legal & Democratic,Supplies & Services,Communications & Computing,Software Maintenance,09/02/2023,474233,766.7,Phoenix Software Ltd
Central Services to the Public,Central Services to the Public,Chief Executive's,Supplies & Services,Communications & Computing,Software Maintenance,09/02/2023,474233,1024.76,Phoenix Software Ltd
Central Services to the Public,Central Services to the Public,Community and Leisure ,Supplies & Services,Communications & Computing,Software Maintenance,09/02/2023,474233,718.2,Phoenix Software Ltd
Planning & Development,Planning & Development,Plan Pol & Transport,Supplies & Services,Communications & Computing,Software Maintenance,09/02/2023,474233,153.34,Phoenix Software Ltd
Cultural & Related,Cultural & Related,Community and Leisure ,Supplies & Services,Miscellaneous Expenses,Booking Of Acts,02/02/2023,474380,3197,Bon Giovi
Central Services to the Public,Central Services to the Public,Premises & Asset Management,Third Party Payments,Other Establishments,Contract Catering,16/02/2023,475539,2679.27,Edwards And Ward Ltd
Central Services to the Public,Central Services to the Public,IT,Supplies & Services,Communications & Computing,Software Maintenance,23/02/2023,475898,2700,Automated Intelligence Ltd
Central Services to the Public,Central Services to the Public,Environmental,Transport Related Expenditure,Direct Transport Costs,Diesel,09/02/2023,474371,2709.47,Wp Group Limited
Cultural & Related,Cultural & Related,Community and Leisure ,Supplies & Services,Miscellaneous Expenses,Booking Of Acts,16/02/2023,475551,2746.67,Avalon Management Group Ltd
Cultural & Related,Cultural & Related,Community and Leisure ,Premises related Expenditure,Grounds Maintenance Costs,Snagging Works,16/02/2023,474182,2753.64,Streetmaster (South Wales) Ltd
Environmental & Regulatory,Environmental & Regulatory,Environmental,Employees,Indirect Employee Expenses,Agency Staff - Waged Posts,23/02/2023,476095,2179.99,24-7 Staffing
Environmental & Regulatory,Environmental & Regulatory,Environmental,Employees,Indirect Employee Expenses,Agency Staff - Waged Posts,23/02/2023,476095,590.25,24-7 Staffing
Planning & Development,Planning & Development,Plan Pol & Transport,Supplies & Services,Grants & Subscriptions,Grants,16/02/2023,474769,3357.38,Hampshire County Council
Cultural & Related,Cultural & Related,Community and Leisure ,Premises related Expenditure,Repairs Alterations & Maintenance of Buildings,Estates premises costs - AMP,16/02/2023,474229,2880,Ministry Of Play Ltd
External Trading Accounts,External Trading Accounts,Premises & Asset Management,Premises related Expenditure,Energy Costs,Electricity,16/02/2023,475770,2926.47,Smartestenergy Ltd
External Trading Accounts,External Trading Accounts,Premises & Asset Management,Premises related Expenditure,Energy Costs,Electricity,16/02/2023,475607,2929.38,Smartestenergy Business Limited
Cultural & Related,Cultural & Related,Environmental,Transport Related Expenditure,Direct Transport Costs,Tyres,23/02/2023,475841,45.6,Tructyre Ats
Environmental & Regulatory,Environmental & Regulatory,Environmental,Transport Related Expenditure,Direct Transport Costs,Tyres,23/02/2023,475841,2705.67,Tructyre Ats
Environmental & Regulatory,Environmental & Regulatory,Environmental,Transport Related Expenditure,Direct Transport Costs,Tyres,23/02/2023,475841,243.2,Tructyre Ats
Central Services to the Public,Central Services to the Public,Premises & Asset Management,Third Party Payments,Other Establishments,Private Contractors,16/02/2023,475737,3000,Andover Glass Works Ltd
Cultural & Related,Cultural & Related,Community and Leisure ,Premises related Expenditure,Repairs Alterations & Maintenance of Buildings,Estates premises costs - AMP,16/02/2023,474178,3000,The Arboricultural Co Ltd
Central Services to the Public,Central Services to the Public,IT,Employees,Indirect Employee Expenses,Temporary Staff,16/02/2023,475098,3080,Maru-Search
Central Services to the Public,Central Services to the Public,Environmental,Transport Related Expenditure,Direct Transport Costs,Diesel,23/02/2023,476136,3092.16,Wp Group Limited
Central Services to the Public,Central Services to the Public,Premises & Asset Management,Employees,Indirect Employee Expenses,Agency Staff - Waged Posts,02/02/2023,473758,3125,Park Avenue Recruitment
Central Services to the Public,Central Services to the Public,Premises & Asset Management,Employees,Indirect Employee Expenses,Agency Staff - Waged Posts,23/02/2023,475586,3125,Park Avenue Recruitment
Central Services to the Public,Central Services to the Public,Premises & Asset Management,Employees,Indirect Employee Expenses,Agency Staff - Waged Posts,23/02/2023,475750,3125,Park Avenue Recruitment
Central Services to the Public,Central Services to the Public,Premises & Asset Management,Employees,Indirect Employee Expenses,Agency Staff - Waged Posts,23/02/2023,475751,3125,Park Avenue Recruitment
Central Services to the Public,Central Services to the Public,Premises & Asset Management,Employees,Indirect Employee Expenses,Agency Staff - Waged Posts,23/02/2023,475753,3125,Park Avenue Recruitment
Central Services to the Public,Central Services to the Public,Premises & Asset Management,Employees,Indirect Employee Expenses,Agency Staff - Waged Posts,23/02/2023,475754,3125,Park Avenue Recruitment
Central Services to the Public,Central Services to the Public,Premises & Asset Management,Employees,Indirect Employee Expenses,Agency Staff - Waged Posts,23/02/2023,475755,3125,Park Avenue Recruitment
Central Services to the Public,Central Services to the Public,Premises & Asset Management,Employees,Indirect Employee Expenses,Agency Staff - Waged Posts,23/02/2023,475757,3125,Park Avenue Recruitment
Central Services to the Public,Central Services to the Public,Premises & Asset Management,Employees,Indirect Employee Expenses,Agency Staff - Waged Posts,23/02/2023,475758,3125,Park Avenue Recruitment
Central Services to the Public,Central Services to the Public,Premises & Asset Management,Employees,Indirect Employee Expenses,Agency Staff - Waged Posts,23/02/2023,475760,3125,Park Avenue Recruitment
Cultural & Related,Cultural & Related,Community and Leisure ,Supplies & Services,Miscellaneous Expenses,Booking Of Acts,02/02/2023,474231,3126.67,Bound & Gagged Comedy Ltd
Environmental & Regulatory,Environmental & Regulatory,Community and Leisure ,Supplies & Services,Communications & Computing,Software Maintenance,02/02/2023,474186,3160,Edge It Systems Limited
Cultural & Related,Cultural & Related,Community and Leisure ,Supplies & Services,Miscellaneous Expenses,Promotions / Special Events,02/02/2023,473513,3800,Andover Town Centre Bid Ltd
Environmental & Regulatory,Environmental & Regulatory,Environmental,Employees,Indirect Employee Expenses,Agency Staff - Waged Posts,16/02/2023,475545,3187.03,24-7 Staffing
Cultural & Related,Cultural & Related,Community and Leisure ,Premises related Expenditure,Repairs Alterations & Maintenance of Buildings,Estates premises costs - AMP,09/02/2023,474734,3320,Groundlord Ltd
Cultural & Related,Cultural & Related,Community and Leisure ,Supplies & Services,Miscellaneous Expenses,Booking Of Acts,09/02/2023,475055,3355.63,One Night In Dublin Ltd
Cultural & Related,Cultural & Related,Premises & Asset Management,Premises related Expenditure,Energy Costs,Gas,16/02/2023,475730,3419.64,Totalenergies Gas & Power Ltd
Central Services to the Public,Central Services to the Public,Estates and Economic Development ,Third Party Payments,Private contractors,Main Contractor Costs,23/02/2023,476389,4106.92,Fabrikat (Nottingham) Ltd
External Trading Accounts,External Trading Accounts,Premises & Asset Management,Supplies & Services,Services,Professional Fees,23/02/2023,471215,3451.55,Carter Jonas
Central Services to the Public,Central Services to the Public,Environmental,Transport Related Expenditure,Direct Transport Costs,Diesel,23/02/2023,475896,3526.2,Wp Group Limited
Central Services to the Public,Central Services to the Public,Legal & Democratic,Supplies & Services,Miscellaneous Expenses,Land Charges Fees,02/02/2023,474206,3570,Hampshire County Council
Cultural & Related,Cultural & Related,Community and Leisure ,Supplies & Services,Services,Professional Fees,02/02/2023,473514,3580,Hemingwaydesign
Environmental & Regulatory,Environmental & Regulatory,Environmental,Supplies & Services,"Equipment, Furniture & Materials",Maintenance Equip + Materials,02/02/2023,473757,3589,Imperial Polythene Products Ltd
Cultural & Related,Cultural & Related,Community and Leisure ,Premises related Expenditure,Grounds Maintenance Costs,Non Contract Tree Works,23/02/2023,476084,3600,Personal Data - Data Protection Act 1998
External Trading Accounts,External Trading Accounts,Premises & Asset Management,Supplies & Services,Services,Professional Fees,23/02/2023,474379,3625,Smith Price Llp
Environmental & Regulatory,Environmental & Regulatory,Environmental,Employees,Indirect Employee Expenses,Agency Staff - Waged Posts,09/02/2023,474418,3543.68,24-7 Staffing
Environmental & Regulatory,Environmental & Regulatory,Environmental,Employees,Indirect Employee Expenses,Agency Staff - Waged Posts,09/02/2023,474418,118.05,24-7 Staffing
Environmental & Regulatory,Environmental & Regulatory,Housing and Environmental Health ,Supplies & Services,Grants and subscriptions,Capital Grants,09/02/2023,475283,4442.41,Lifestyle Solutions
Cultural & Related,Cultural & Related,Community and Leisure ,Premises related Expenditure,Repairs Alterations & Maintenance of Buildings,Estates premises costs - AMP,16/02/2023,473922,3714,Groundlord Ltd
Environmental & Regulatory,Environmental & Regulatory,Environmental,Transport Related Expenditure,Direct Transport Costs,External Garages,23/02/2023,475831,1233,Dennis Eagle Ltd
Environmental & Regulatory,Environmental & Regulatory,Environmental,Transport Related Expenditure,Direct Transport Costs,Repair Materials,23/02/2023,475831,2583.77,Dennis Eagle Ltd
Cultural & Related,Cultural & Related,Community and Leisure ,Supplies & Services,Miscellaneous Expenses,Booking Of Acts,16/02/2023,475795,3901.31,Ss1 Entertainments Ltd
Cultural & Related,Cultural & Related,Community and Leisure ,Premises related Expenditure,Energy Costs,Electricity,09/02/2023,474766,3715.35,Sparsholt College Hampshire
Cultural & Related,Cultural & Related,Community and Leisure ,Premises related Expenditure,Energy Costs,Gas,09/02/2023,474766,0.29,Sparsholt College Hampshire
Cultural & Related,Cultural & Related,Community and Leisure ,Premises related Expenditure,Water Services,Water And Sewerage Charges,09/02/2023,474766,254.34,Sparsholt College Hampshire
Cultural & Related,Cultural & Related,Community and Leisure ,Premises related Expenditure,Repairs Alterations & Maintenance of Buildings,Estates premises costs - AMP,02/02/2023,473931,3995,Tree Technique Ltd
External Trading Accounts,External Trading Accounts,Premises & Asset Management,Supplies & Services,Miscellaneous Expenses,Waste Collection,09/02/2023,474778,4056.5,Grist Environmental
Central Services to the Public,Central Services to the Public,Premises & Asset Management,Third Party Payments,Other Establishments,Private Contractors,23/02/2023,475894,4115.38,Cross Rental Ltd
Environmental & Regulatory,Environmental & Regulatory,Community and Leisure ,Supplies & Services,Grants & Subscriptions,Contributions,09/02/2023,474438,5000,Unity
Central Services to the Public,Central Services to the Public,Finance,Supplies & Services,Services,Project Consultancy - Policy,02/02/2023,474412,4187.5,Link Asset Services
Environmental & Regulatory,Environmental & Regulatory,Environmental,Employees,Indirect Employee Expenses,Agency Staff - Waged Posts,02/02/2023,473871,3289.66,24-7 Staffing
Environmental & Regulatory,Environmental & Regulatory,Environmental,Employees,Indirect Employee Expenses,Agency Staff - Waged Posts,02/02/2023,473871,1062.45,24-7 Staffing
Environmental & Regulatory,Environmental & Regulatory,Housing and Environmental Health ,Supplies & Services,Grants and subscriptions,Capital Grants,16/02/2023,475886,5231.9,A & E Builders
Planning & Development,Planning & Development,Community and Leisure ,Supplies & Services,Grants & Subscriptions,Grants,02/02/2023,474548,5277.34,Chapel Arts Studio
Central Services to the Public,Central Services to the Public,Premises & Asset Management,Premises related Expenditure,Energy Costs,Gas,16/02/2023,475626,4566.39,Totalenergies Gas & Power Ltd
Environmental & Regulatory,Environmental & Regulatory,Housing and Environmental Health ,Supplies & Services,Grants and subscriptions,Capital Grants,16/02/2023,475887,5851,Acer Renovations Ltd
Environmental & Regulatory,Environmental & Regulatory,Housing and Environmental Health ,Supplies & Services,Grants and subscriptions,Capital Grants,09/02/2023,475282,6093.73,Jj Dunne
Central Services to the Public,Central Services to the Public,Environmental,Transport Related Expenditure,Direct Transport Costs,Diesel,16/02/2023,475581,5080.89,Wp Group Limited
Central Services to the Public,Central Services to the Public,Premises & Asset Management,Third Party Payments,Other Establishments,Private Contractors,16/02/2023,475790,5090,Doorgear Limited
Central Services to the Public,Central Services to the Public,Finance,Supplies & Services,"Printing, Stationery & General Office Expenses",Postage Costs,23/02/2023,475054,6161.4,Pitney Bowes Limited
Central Services to the Public,Central Services to the Public,Legal & Democratic,Supplies & Services,Communications & Computing,Computer Software,09/02/2023,469295,5168.02,Iken Business Ltd
Central Services to the Public,Central Services to the Public,Legal & Democratic,Supplies & Services,Miscellaneous Expenses,Land Charges Fees,23/02/2023,475784,5334,Hampshire County Council
Environmental & Regulatory,Environmental & Regulatory,Housing and Environmental Health ,Supplies & Services,Grants and subscriptions,Capital Grants,16/02/2023,475623,6641.2,J D Codd Ltd
"Highways, Roads & Transport","Highways, Roads & Transport",Plan Pol & Transport,Premises related Expenditure,Repairs Alterations & Maintenance of Buildings,Building Maint - Non Estates,16/02/2023,475546,5569.5,Pattco
Central Services to the Public,Central Services to the Public,IT,Employees,Indirect Employee Expenses,Temporary Staff,16/02/2023,475590,5670,Maru-Search
Environmental & Regulatory,Environmental & Regulatory,Environmental,Transport Related Expenditure,Direct Transport Costs,External Garages,23/02/2023,475537,2065,South East Cranes Ltd
Environmental & Regulatory,Environmental & Regulatory,Environmental,Transport Related Expenditure,Direct Transport Costs,Repair Materials,23/02/2023,475537,4177.85,South East Cranes Ltd
Central Services to the Public,Central Services to the Public,Finance,Supplies & Services,Services,Insurance ,16/02/2023,475835,7495.82,Gallagher
Central Services to the Public,Central Services to the Public,Premises & Asset Management,Employees,Indirect Employee Expenses,Agency Staff - Waged Posts,23/02/2023,475756,6250,Park Avenue Recruitment
Cultural & Related,Cultural & Related,Community and Leisure ,Premises related Expenditure,Grounds Maintenance Costs,Non Contract Tree Works,02/02/2023,465190,1929.37,Gristwood & Toms Ltd
Cultural & Related,Cultural & Related,Community and Leisure ,Premises related Expenditure,Repairs Alterations & Maintenance of Buildings,Estates premises costs - AMP,02/02/2023,465190,4423.28,Gristwood & Toms Ltd
Central Services to the Public,Central Services to the Public,Premises & Asset Management,Premises related Expenditure,Energy Costs,Gas,16/02/2023,475644,6745.23,Totalenergies Gas & Power Ltd
Central Services to the Public,Central Services to the Public,Environmental,Transport Related Expenditure,Direct Transport Costs,Vehicles and Plant,16/02/2023,475838,7268,Lister Wilder
Central Services to the Public,Central Services to the Public,Environmental,Transport Related Expenditure,Direct Transport Costs,Vehicles and Plant,23/02/2023,476280,7270,T H White Ltd
Cultural & Related,Cultural & Related,Premises & Asset Management,Premises related Expenditure,Repairs Alterations & Maintenance of Buildings,Estates premises costs - AMP,16/02/2023,474375,7779.59,Stonewest Limited
Central Services to the Public,Central Services to the Public,Environmental,Transport Related Expenditure,Direct Transport Costs,Diesel,23/02/2023,476138,8227.23,Wp Group Limited
Central Services to the Public,Central Services to the Public,Legal & Democratic,Supplies & Services,Communications & Computing,Computer Software,02/02/2023,473944,8486,Civica Election Services Ltd
Cultural & Related,Cultural & Related,Community and Leisure ,Third Party Payments,Private contractors,Main Contractor Costs,09/02/2023,475056,8750,Purbeck Civil Engineering Limited
Central Services to the Public,Central Services to the Public,Premises & Asset Management,Third Party Payments,Other Establishments,Private Contractors,16/02/2023,475736,8886.18,Corrigenda Ltd
Central Services to the Public,Central Services to the Public,Legal & Democratic,Employees,Indirect Employee Expenses,Agency Staff - Waged Posts,09/02/2023,474787,9021,Vivid Resourcing
Central Services to the Public,Central Services to the Public,Environmental,Transport Related Expenditure,Direct Transport Costs,Diesel,16/02/2023,475584,9415.38,Wp Group Limited
Environmental & Regulatory,Environmental & Regulatory,Housing and Environmental Health ,Supplies & Services,Grants and subscriptions,Capital Grants,09/02/2023,475280,11307,Shield Building Services (Uk) Ltd
Central Services to the Public,Central Services to the Public,Environmental,Transport Related Expenditure,Direct Transport Costs,Diesel,09/02/2023,474203,9499.7,Wp Group Limited
External Trading Accounts,External Trading Accounts,Premises & Asset Management,Premises related Expenditure,Cleaning and domestic supplies,Contract Cleaning - Non Estates,09/02/2023,474748,11150.88,Red Support Services
Cultural & Related,Cultural & Related,Community and Leisure ,Premises related Expenditure,Grounds Maintenance Costs,Non Contract Tree Works,02/02/2023,468356,4991.42,Gristwood & Toms Ltd
Cultural & Related,Cultural & Related,Community and Leisure ,Premises related Expenditure,Repairs Alterations & Maintenance of Buildings,Estates premises costs - AMP,02/02/2023,468356,6375.64,Gristwood & Toms Ltd
Planning & Development,Planning & Development,Plan Pol & Transport,Employees,Indirect Employee Expenses,Temporary Staff,16/02/2023,474770,11504.4,Vivid Resourcing
External Trading Accounts,External Trading Accounts,Estates and Economic Development ,Third Party Payments,Private contractors,Main Contractor Costs,02/02/2023,472792,13033.87,Savills (L&P) Ltd
Cultural & Related,Cultural & Related,Community and Leisure ,Premises related Expenditure,Grounds Maintenance Costs,Non Contract Tree Works,02/02/2023,473753,13180,Groundlord Ltd
Cultural & Related,Cultural & Related,Community and Leisure ,Premises related Expenditure,Grounds Maintenance Costs,Non Contract Tree Works,16/02/2023,474176,2983.82,Gristwood & Toms Ltd
Cultural & Related,Cultural & Related,Community and Leisure ,Premises related Expenditure,Repairs Alterations & Maintenance of Buildings,Estates premises costs - AMP,16/02/2023,474176,10409.58,Gristwood & Toms Ltd
Environmental & Regulatory,Environmental & Regulatory,Housing and Environmental Health ,Supplies & Services,Grants and subscriptions,Capital Grants,23/02/2023,476379,16457,A & E Builders
Cultural & Related,Cultural & Related,Community and Leisure ,Supplies & Services,Grants and subscriptions,Capital Grants,16/02/2023,475877,17556.5,Longparish Community Pub Ltd.
Environmental & Regulatory,Environmental & Regulatory,Housing and Environmental Health ,Supplies & Services,Grants and subscriptions,Capital Grants,23/02/2023,476378,19489.81,Kemp Buildings (Gosport) Ltd
Central Services to the Public,Central Services to the Public,Revenues,Supplies & Services,Miscellaneous Expenses,Other Miscellaneous Costs,16/02/2023,475739,16255.97,Andover Town Centre Bid Ltd
Central Services,Central Services,Corporate & Democratic,Supplies & Services,Services,Project Consultancy - Policy,02/02/2023,474381,16300,The Involve Foundation
Central Services to the Public,Central Services to the Public,Housing and Environmental Health ,Supplies & Services,Communications & Computing,Software Maintenance,23/02/2023,476125,20247.73,Civica Uk Ltd
Environmental & Regulatory,Environmental & Regulatory,Environmental,Third Party Payments,Other Establishments,Private Contractors,16/02/2023,475059,23215.67,Forest Traffic Services Ltd
Housing Services,Housing Services,Revenues,Supplies & Services,Miscellaneous Expenses,External Audit Fees,16/02/2023,475834,23760,Kpmg Llp
External Trading Accounts,External Trading Accounts,Premises & Asset Management,Third Party Payments,Other Establishments,Other Contractors,09/02/2023,474750,24208.71,Red Support Services
Central Services to the Public,Central Services to the Public,Finance,Supplies & Services,Services,Insurance ,09/02/2023,475271,52881.48,Gallagher
Planning & Development,Planning & Development,Planning & Building,Third Party Payments,Commuted Sum,s106 Developer contributions,02/02/2023,474547,85826.44,Hampshire County Council
Planning & Development,Planning & Development,Planning & Building,Third Party Payments,Commuted Sum,CIL Contribution,09/02/2023,475284,100450,Personal Data - Data Protection Act 1998
Central Services to the Public,Central Services to the Public,Environmental,Transport Related Expenditure,Direct Transport Costs,Vehicles and Plant,02/02/2023,474223,195729,Dennis Eagle Ltd
Central Services to the Public,Central Services to the Public,Environmental,Transport Related Expenditure,Direct Transport Costs,Vehicles and Plant,09/02/2023,474224,195729,Dennis Eagle Ltd
"Highways, Roads & Transport","Highways, Roads & Transport",Plan Pol & Economic,Third Party Payments,Private contractors,Main Contractor Costs,09/02/2023,474222,235000,Environment Agency
